Workbook

Sheet Årsoversikt
B2: Månedsoversikt gjennom hele året.
M4: *
C5: Antall arbeids- dager | D5: Arbeidstid iht normal arbeidstid pr dag | F5: =Januar!$C$28 -> Normal arbeidstid | G5: =Januar!$F$28 -> Ekstra arbeidstid | H5: =Januar!$I$28 -> Fravær i arbeidstiden | J5: Arbeidstid pr. måned | K5: Overført til neste måned | M5: =Januar!$L$28 -> Overtid | O5: Utbetalt Timer | P5: Utbetalt overtid
B6: Januar | C6: =Januar!$M$17 -> 22 | D6: =Januar!$M$16 -> 6.875 | F6: =Januar!$M$10 -> 0 | G6: =Januar!$M$11 -> 0 | H6: =Januar!$M$12 -> 0 | J6: =Januar!$M$13 -> 0 | K6: =Januar!$M$1 -> -6.875 | M6: =Januar!$M$19 -> 0 | O6: =Januar!$M$2 -> 0 | P6: =Januar!$M$5 -> 0
B7: Februar | C7: =Februar!$M$17 -> 20 | D7: =Februar!$M$16 -> 6.25 | F7: =Februar!$M$10 -> 0 | G7: =Februar!$M$11 -> 0 | H7: =Februar!$M$12 -> 0 | J7: =Februar!$M$13 -> 0 | K7: =Februar!$M$1 -> -13.125 | M7: =Februar!$M$19 -> 0 | O7: =Februar!$M$2 -> 0 | P7: =Februar!$M$5 -> 0
B8: Mars | C8: =Mars!$M$17 -> 19.6 | D8: =Mars!$M$16 -> 6.125 | F8: =Mars!$M$10 -> 0 | G8: =Mars!$M$11 -> 0 | H8: =Mars!$M$12 -> 0 | J8: =Mars!$M$13 -> 0 | K8: =Mars!$M$1 -> -19.25 | M8: =Mars!$M$19 -> 0 | O8: =Mars!$M$2 -> 0 | P8: =Mars!$M$5 -> 0
B9: April | C9: =April!$M$17 -> 20 | D9: =April!$M$16 -> 6.25 | F9: =April!$M$10 -> 0 | G9: =April!$M$11 -> 0 | H9: =April!$M$12 -> 0 | J9: =April!$M$13 -> 0 | K9: =April!$M$1 -> -25.5 | M9: =April!$M$19 -> 0 | O9: =April!$M$2 -> 0 | P9: =April!$M$5 -> 0
B10: Mai | C10: =Mai!$M$17 -> 19 | D10: =Mai!$M$16 -> 5.9375 | F10: =Mai!$M$10 -> 0 | G10: =Mai!$M$11 -> 0 | H10: =Mai!$M$12 -> 0 | J10: =Mai!$M$13 -> 0 | K10: =Mai!$M$1 -> -31.4375 | M10: =Mai!$M$19 -> 0 | O10: =Mai!$M$2 -> 0 | P10: =Mai!$M$5 -> 0
B11: Juni | C11: =Juni!$M$17 -> 21 | D11: =Juni!$M$16 -> 6.5625 | F11: =Juni!$M$10 -> 0 | G11: =Juni!$M$11 -> 0 | H11: =Juni!$M$12 -> 0 | J11: =Juni!$M$13 -> 0 | K11: =Juni!$M$1 -> -38 | M11: =Juni!$M$19 -> 0 | O11: =Juni!$M$2 -> 0 | P11: =Juni!$M$5 -> 0
B12: Juli | C12: =Juli!$M$17 -> 22 | D12: =Juli!$M$16 -> 6.875 | F12: =Juli!$M$10 -> 0 | G12: =Juli!$M$11 -> 0 | H12: =Juli!$M$12 -> 0 | J12: =Juli!$M$13 -> 0 | K12: =Juli!$M$1 -> -44.875 | M12: =Juli!$M$19 -> 0 | O12: =Juli!$M$2 -> 0 | P12: =Juli!$M$5 -> 0
B13: August | C13: =August!$M$17 -> 23 | D13: =August!$M$16 -> 7.1875 | F13: =August!$M$10 -> 0 | G13: =August!$M$11 -> 0 | H13: =August!$M$12 -> 0 | J13: =August!$M$13 -> 0 | K13: =August!$M$1 -> -52.0625 | M13: =August!$M$19 -> 0 | O13: =August!$M$2 -> 0 | P13: =August!$M$5 -> 0
B14: September | C14: =September!$M$17 -> 20 | D14: =September!$M$16 -> 6.25 | F14: =September!$M$10 -> 0 | G14: =September!$M$11 -> 0 | H14: =September!$M$12 -> 0 | J14: =September!$M$13 -> 0 | K14: =September!$M$1 -> -58.3125 | M14: =September!$M$19 -> 0 | O14: =September!$M$2 -> 0 | P14: =September!$M$5 -> 0
B15: Oktober | C15: =Oktober!$M$17 -> 23 | D15: =Oktober!$M$16 -> 7.1875 | F15: =Oktober!$M$10 -> 0 | G15: =Oktober!$M$11 -> 0 | H15: =Oktober!$M$12 -> 0 | J15: =Oktober!$M$13 -> 0 | K15: =Oktober!$M$1 -> -65.5 | M15: =Oktober!$M$19 -> 0 | O15: =Oktober!$M$2 -> 0 | P15: =Oktober!$M$5 -> 0
B16: November | C16: =November!$M$17 -> 22 | D16: =November!$M$16 -> 6.875 | F16: =November!$M$10 -> 0 | G16: =November!$M$11 -> 0 | H16: =November!$M$12 -> 0 | J16: =November!$M$13 -> 0 | K16: =November!$M$1 -> -72.375 | M16: =November!$M$19 -> 0 | O16: =November!$M$2 -> 0 | P16: =November!$M$5 -> 0
B17: Desember | C17: =Desember!$M$17 -> 18.2 | D17: =Desember!$M$16 -> 5.6875 | F17: =Desember!$M$10 -> 0 | G17: =Desember!$M$11 -> 0 | H17: =Desember!$M$12 -> 0 | J17: =Desember!$M$13 -> 0 | K17: =Desember!$M$1 -> -78.0625 | M17: =Desember!$M$19 -> 0 | O17: =Desember!$M$2 -> 0 | P17: =Desember!$M$5 -> 0
B19: Sum hele året | C19: =SUM(C6:C17) -> 249.8 | D19: =SUM(D6:D17) -> 78.0625 | F19: =SUM(F6:F17) -> 0 | G19: 0 | H19: 0 | J19: 0 | M19: =SUM(M6:M17) -> 0 | O19: 0 | P19: 0
B22: *Merk at Overtid kun gir oversikt over antall timer som er arbeidet overtid den enkelte måned, ikke totaltid inkludert eventuell overtid fra året før.
B23: OT til gode (etter utbetaling) den enkelte måned finner du celle M6.

Sheet Januar
B1: Overføres til neste måned - arbeidstid + / - (etter evt utbetaling): | M1: =SUM((M13+M15)-(M16+B9)-M2) -> -6.875
B2: Sum timer (EA) som utbetales denne måned (trekkes fra timer til gode):
B4: Sum overtid i år (AML § 10-6) Overføres til neste måned: | M4: =M19 -> 0
B5: Utbetalt OT denne måned:
B6: OT fra forrige mnd: | G6: OT til gode (etter utbetaling) denne mnd: | M6: =SUM(M19+E6-M5) -> 0
B8: Evt. minustid fra forrige år: | G8: Uke | H8: Uke | I8: Uke | J8: Uke | K8: Uke | L8: Uke | M8: Sum for | O8: Lagring.
B9: 0 | H9: 1 | I9: 2 | J9: =I9+1 -> 3 | K9: =J9+1 -> 4 | L9: =K9+1 -> 5 | M9: måneden. | O9: Tips.
B10: Normal arbeidstid: | H10: =SUM(E31:E37) -> 0 | I10: =SUM(E38:E44) -> 0 | J10: =SUM(E45:E51) -> 0 | K10: =SUM(E52:E58) -> 0 | L10: =SUM(E59:E61) -> 0 | M10: =SUM(G10:L10) -> 0 | O10: Start ute i året.
B11: Ekstra arbeidstid (EA Ikke OT): | H11: =SUM(H31:H37) -> 0 | I11: =SUM(H38:H44) -> 0 | J11: =SUM(H45:H51) -> 0 | K11: =SUM(H52:H58) -> 0 | L11: =SUM(H59:H61) -> 0 | M11: =SUM(G11:L11) -> 0 | O11: Nye versjoner.
B12: Fravær i arbeidstiden: | H12: =SUM(K31:K37) -> 0 | I12: =SUM(K38:K44) -> 0 | J12: =SUM(K45:K51) -> 0 | K12: =SUM(K52:K58) -> 0 | L12: =SUM(K59:K61) -> 0 | M12: =SUM(G12:L12) -> 0 | O12: Forfatter.
B13: Sum arbeidstid: | H13: =SUM(H10+H11-H12) -> 0 | I13: 0 | J13: 0 | K13: 0 | L13: 0 | M13: =SUM(G13:L13) -> 0 | O13: Kommentarer
B14: + / - arbeidstid pr. uke : | H14: =SUM(H13-H16) -> -1.25 | I14: -1.5625 | J14: -1.5625 | K14: -1.5625 | L14: -0.9375 | M14: =SUM(G14:L14) -> -6.875
B15: Overført fra forrige måned / år: | O15: Antall dager og timer
B16: Normal arbeidstid pr uke : | H16: =H18 -> 1.25 | I16: 1.5625 | J16: 1.5625 | K16: 1.5625 | L16: 0.9375 | M16: =SUM(G16:L16) -> 6.875 | O16: du skal arbeide i
B17: Antall dager med normal arbeidstid | H17: 4 | I17: 5 | J17: 5 | K17: 5 | L17: 3 | M17: =SUM(G17:L17) -> 22 | O17: dette året (- ferie):
B18: Normal arbeidstid pr dag (timer): | F18: 07:30:00 | H18: =$F$18*H17 -> 1.25 | I18: 1.5625 | J18: 1.5625 | K18: 1.5625 | L18: 0.9375 | O18: =Årsoversikt!$C$19 -> 249.8
B19: Overtid: | H19: =SUM(N31:N37) -> 0 | I19: =SUM(N38:N44) -> 0 | J19: =SUM(N45:N51) -> 0 | K19: =SUM(N52:N58) -> 0 | L19: =SUM(N59:N61) -> 0 | M19: =SUM(G19:L19) -> 0 | O19: =SUM(Årsoversikt!$D$19) -> 78.0625
A21: MERKNADER TIL PERIODEN:
A22: Hvis du lurer på noen felt, kan du la musepekeren hvile på de cellene som har en liten rød trekant øverst i høyre hjørne. Da får du frem en "Merknad" med forklaring. De aller fleste feltene er for øvrig låst, slik at du ikke skal kunne endre på skjemaet. Etter at du har tatt skjemaet i bruk, bør du slette denne teksten i merknaden. LES BRUKERVEILEDNINGEN SELV OM DET ER FOR "FEIGINGER"!
C28: Normal arbeidstid | F28: Ekstra arbeidstid | I28: Fravær i arbeidstiden | L28: Overtid | O28: Merknad
A29: Dato | B29: Dag | C29: Inn | D29: Ut | E29: Sum | F29: Inn | G29: Ut | H29: Sum | I29: Ut | J29: Inn | K29: Sum | L29: Inn | M29: Ut | N29: Sum
A31: 2018-01-01 | B31: Mandag | E31: =SUM(D31-C31) -> 00:00:00 | H31: =SUM(G31-F31) -> 00:00:00 | K31: =SUM(J31-I31) -> 00:00:00 | N31: =SUM(M31-L31) -> 00:00:00 | O31: 1. Nyttårsdag
A32: =A31+1 -> 2018-01-02 | B32: Tirsdag | E32: =SUM(D32-C32) -> 00:00:00 | H32: =SUM(G32-F32) -> 00:00:00 | K32: =SUM(J32-I32) -> 00:00:00 | N32: =SUM(M32-L32) -> 00:00:00 | O32: Uke 1
A33: =A32+1 -> 2018-01-03 | B33: Onsdag | E33: =SUM(D33-C33) -> 00:00:00 | H33: =SUM(G33-F33) -> 00:00:00 | K33: =SUM(J33-I33) -> 00:00:00 | N33: =SUM(M33-L33) -> 00:00:00
A34: 2018-01-04 | B34: Torsdag | E34: 00:00:00 | H34: 00:00:00 | K34: 00:00:00 | N34: 00:00:00
A35: 2018-01-05 | B35: Fredag | E35: 00:00:00 | H35: 00:00:00 | K35: 00:00:00 | N35: 00:00:00
A36: 2018-01-06 | B36: Lørdag | E36: 00:00:00 | H36: 00:00:00 | K36: 00:00:00 | N36: 00:00:00
A37: 2018-01-07 | B37: Søndag | E37: 00:00:00 | H37: 00:00:00 | K37: 00:00:00 | N37: 00:00:00
A38: 2018-01-08 | B38: Mandag | E38: 00:00:00 | H38: 00:00:00 | K38: 00:00:00 | N38: 00:00:00 | O38: Uke 2
A39: 2018-01-09 | B39: Tirsdag | E39: 00:00:00 | H39: 00:00:00 | K39: 00:00:00 | N39: 00:00:00
A40: 2018-01-10 | B40: Onsdag | E40: =SUM(D40-C40) -> 00:00:00 | H40: =SUM(G40-F40) -> 00:00:00 | K40: =SUM(J40-I40) -> 00:00:00 | N40: 00:00:00
A41: 2018-01-11 | B41: Torsdag | E41: =SUM(D41-C41) -> 00:00:00 | H41: =SUM(G41-F41) -> 00:00:00 | K41: =SUM(J41-I41) -> 00:00:00 | N41: 00:00:00
A42: 2018-01-12 | B42: Fredag | E42: =SUM(D42-C42) -> 00:00:00 | H42: =SUM(G42-F42) -> 00:00:00 | K42: =SUM(J42-I42) -> 00:00:00 | N42: 00:00:00
A43: 2018-01-13 | B43: Lørdag | E43: =SUM(D43-C43) -> 00:00:00 | H43: =SUM(G43-F43) -> 00:00:00 | K43: =SUM(J43-I43) -> 00:00:00 | N43: =SUM(M43-L43) -> 00:00:00
A44: 2018-01-14 | B44: Søndag | E44: =SUM(D44-C44) -> 00:00:00 | H44: =SUM(G44-F44) -> 00:00:00 | K44: =SUM(J44-I44) -> 00:00:00 | N44: 00:00:00
A45: 2018-01-15 | B45: Mandag | E45: 00:00:00 | H45: 00:00:00 | K45: 00:00:00 | N45: 00:00:00 | O45: Uke 3
A46: 2018-01-16 | B46: Tirsdag | E46: 00:00:00 | H46: 00:00:00 | K46: 00:00:00 | N46: 00:00:00
A47: 2018-01-17 | B47: Onsdag | E47: 00:00:00 | H47: 00:00:00 | K47: 00:00:00 | N47: 00:00:00
A48: 2018-01-18 | B48: Torsdag | E48: 00:00:00 | H48: 00:00:00 | K48: 00:00:00 | N48: 00:00:00
A49: 2018-01-19 | B49: Fredag | E49: 00:00:00 | H49: 00:00:00 | K49: 00:00:00 | N49: 00:00:00
A50: 2018-01-20 | B50: Lørdag | E50: =SUM(D50-C50) -> 00:00:00 | H50: =SUM(G50-F50) -> 00:00:00 | K50: =SUM(J50-I50) -> 00:00:00 | N50: 00:00:00
A51: 2018-01-21 | B51: Søndag | E51: 00:00:00 | H51: 00:00:00 | K51: 00:00:00 | N51: 00:00:00
A52: 2018-01-22 | B52: Mandag | E52: 00:00:00 | H52: 00:00:00 | K52: 00:00:00 | N52: 00:00:00 | O52: Uke 4
A53: 2018-01-23 | B53: Tirsdag | E53: 00:00:00 | H53: 00:00:00 | K53: 00:00:00 | N53: 00:00:00
A54: 2018-01-24 | B54: Onsdag | E54: 00:00:00 | H54: 00:00:00 | K54: 00:00:00 | N54: 00:00:00
A55: 2018-01-25 | B55: Torsdag | E55: 00:00:00 | H55: 00:00:00 | K55: 00:00:00 | N55: 00:00:00
A56: 2018-01-26 | B56: Fredag | E56: 00:00:00 | H56: 00:00:00 | K56: 00:00:00 | N56: 00:00:00
A57: 2018-01-27 | B57: Lørdag | E57: 00:00:00 | H57: 00:00:00 | K57: 00:00:00 | N57: 00:00:00
A58: 2018-01-28 | B58: Søndag | E58: 00:00:00 | H58: 00:00:00 | K58: 00:00:00 | N58: 00:00:00
A59: 2018-01-29 | B59: Mandag | E59: 00:00:00 | H59: 00:00:00 | K59: 00:00:00 | N59: 00:00:00 | O59: Uke 5
A60: 2018-01-30 | B60: Tirsdag | E60: 00:00:00 | H60: 00:00:00 | K60: 00:00:00 | N60: 00:00:00
A61: 2018-01-31 | B61: Onsdag | E61: =SUM(D61-C61) -> 00:00:00 | H61: =SUM(G61-F61) -> 00:00:00 | K61: =SUM(J61-I61) -> 00:00:00 | N61: 00:00:00
A64: Signatur (arbeidstaker) | I64: Godkjent (overordnet)
A70: Dato | B70: Signatur | I70: Dato | J70: Signatur

Sheet Februar
B1: Overføres til neste måned - arbeidstid + / - (etter evt utbetaling): | M1: =SUM((M13+M15)-M16-M2) -> -13.125
B2: Sum timer (EA) som utbetales denne måned (trekkes fra timer til gode):
B4: =Januar!$B$4 -> Sum overtid i år (AML § 10-6) Overføres til neste måned: | M4: =SUM((Januar!M4)+M19) -> 0
B5: Utbetalt OT denne måned:
B6: OT fra forrige mnd: | E6: =SUM(Januar!M6) -> 0 | G6: OT til gode (etter utbetaling) denne mnd: | M6: =SUM(E6+M19-M5) -> 0
B8: Faktiske timer - Årsdifferanse | G8: Uke | H8: Uke | I8: Uke | J8: Uke | K8: Uke | L8: Uke | M8: Sum for
B9: =SUM((Januar!M13+Januar!M19)+M13+M19) -> 0 | E9: =SUM(B9-(Januar!O19)) -> -78.0625 | G9: 5 | H9: 6 | I9: =H9+1 -> 7 | J9: =I9+1 -> 8 | K9: =J9+1 -> 9 | M9: måneden.
B10: Normal arbeidstid : | G10: =SUM(E31:E34) -> 0 | H10: =SUM(E35:E41) -> 0 | I10: =SUM(E42:E48) -> 0 | J10: =SUM(E49:E55) -> 0 | K10: =SUM(E56:E58) -> 0 | M10: =SUM(G10:L10) -> 0
B11: Ekstra arbeidstid (Ikke OT) : | G11: =SUM(H31:H34) -> 0 | H11: =SUM(H35:H41) -> 0 | I11: =SUM(H42:H48) -> 0 | J11: =SUM(H49:H55) -> 0 | K11: =SUM(H56:H58) -> 0 | M11: =SUM(G11:L11) -> 0
B12: =Januar!$B$12 -> Fravær i arbeidstiden: | G12: =SUM(K31:K34) -> 0 | H12: =SUM(K35:K41) -> 0 | I12: =SUM(K42:K48) -> 0 | J12: =SUM(K49:K55) -> 0 | K12: =SUM(K56:K58) -> 0 | M12: =SUM(G12:L12) -> 0
B13: Sum arbeidstid : | G13: =SUM(G10+G11-G12) -> 0 | H13: =SUM(H10+H11-H12) -> 0 | I13: =SUM(I10+I11-I12) -> 0 | J13: =SUM(J10+J11-J12) -> 0 | K13: =SUM(K10+K11-K12) -> 0 | M13: =SUM(G13:L13) -> 0 | N13: =SUM(N10+N11-N12-N16) -> 0
B14: + / - arbeidstid pr. uke : | G14: =SUM(G13-G16) -> -0.625 | H14: =SUM(H13-H16) -> -1.5625 | I14: =SUM(I13-I16) -> -1.5625 | J14: =SUM(J13-J16) -> -1.5625 | K14: =SUM(K13-K16) -> -0.9375 | M14: =SUM(G14:L14) -> -6.25
B15: Overført fra forrige måned: | M15: =Januar!M1 -> -6.875
B16: =Januar!$B$16 -> Normal arbeidstid pr uke : | G16: =G18 -> 0.625 | H16: =H18 -> 1.5625 | I16: =I18 -> 1.5625 | J16: =J18 -> 1.5625 | K16: =K18 -> 0.9375 | M16: =SUM(G16:L16) -> 6.25
B17: =Januar!$B$17 -> Antall dager med normal arbeidstid | G17: 2 | H17: 5 | I17: 5 | J17: 5 | K17: 3 | M17: =SUM(G17:L17) -> 20
B18: =Januar!$B$18 -> Normal arbeidstid pr dag (timer): | F18: =Januar!$F$18 -> 07:30:00 | G18: =$F$18*G17 -> 0.625 | H18: =$F$18*H17 -> 1.5625 | I18: =$F$18*I17 -> 1.5625 | J18: =$F$18*J17 -> 1.5625 | K18: =$F$18*K17 -> 0.9375
B19: Overtid: | G19: =SUM(N31:N34) -> 0 | H19: =SUM(N35:N41) -> 0 | I19: =SUM(N42:N48) -> 0 | J19: =SUM(N49:N55) -> 0 | K19: =SUM(N56:N58) -> 0 | M19: =SUM(G19:L19) -> 0
A21: MERKNADER TIL PERIODEN:
A22: x
C28: Normal arbeidstid | F28: Ekstra arbeidstid | I28: Fravær i arbeidstiden | L28: =Januar!$L$28 -> Overtid | O28: Merknad
A29: Dato | B29: Dag | C29: Inn | D29: Ut | E29: Sum | F29: Inn | G29: Ut | H29: Sum | I29: Ut | J29: Inn | K29: Sum | L29: Inn | M29: Ut | N29: Sum
A31: =Januar!$A$61+1 -> 2018-02-01 | B31: Torsdag | E31: =SUM(D31-C31) -> 00:00:00 | H31: =SUM(G31-F31) -> 00:00:00 | K31: =SUM(J31-I31) -> 00:00:00 | N31: =SUM(M31-L31) -> 00:00:00 | O31: Uke 5
A32: =A31+1 -> 2018-02-02 | B32: Fredag | E32: 00:00:00 | H32: 00:00:00 | K32: 00:00:00 | N32: 00:00:00
A33: =A32+1 -> 2018-02-03 | B33: Lørdag | E33: 00:00:00 | H33: 00:00:00 | K33: 00:00:00 | N33: 00:00:00
A34: 2018-02-04 | B34: Søndag | E34: 00:00:00 | H34: 00:00:00 | K34: 00:00:00 | N34: 00:00:00
A35: 2018-02-05 | B35: Mandag | E35: 00:00:00 | H35: 00:00:00 | K35: 00:00:00 | N35: 00:00:00 | O35: Uke 6
A36: 2018-02-06 | B36: Tirsdag | E36: =SUM(D36-C36) -> 00:00:00 | H36: =SUM(G36-F36) -> 00:00:00 | K36: 00:00:00 | N36: =SUM(M36-L36) -> 00:00:00
A37: 2018-02-07 | B37: Onsdag | E37: 00:00:00 | H37: 00:00:00 | K37: 00:00:00 | N37: 00:00:00
A38: 2018-02-08 | B38: Torsdag | E38: 00:00:00 | H38: 00:00:00 | K38: 00:00:00 | N38: 00:00:00
A39: 2018-02-09 | B39: Fredag | E39: 00:00:00 | H39: 00:00:00 | K39: 00:00:00 | N39: 00:00:00
A40: 2018-02-10 | B40: Lørdag | E40: 00:00:00 | H40: 00:00:00 | K40: 00:00:00 | N40: 00:00:00
A41: 2018-02-11 | B41: Søndag | E41: 00:00:00 | H41: 00:00:00 | K41: 00:00:00 | N41: 00:00:00 | O41: Fasterlavn
A42: 2018-02-12 | B42: Mandag | E42: =SUM(D42-C42) -> 00:00:00 | H42: =SUM(G42-F42) -> 00:00:00 | K42: =SUM(J42-I42) -> 00:00:00 | N42: =SUM(M42-L42) -> 00:00:00 | O42: Uke 7
A43: 2018-02-13 | B43: Tirsdag | E43: =SUM(D43-C43) -> 00:00:00 | H43: =SUM(G43-F43) -> 00:00:00 | K43: =SUM(J43-I43) -> 00:00:00 | N43: =SUM(M43-L43) -> 00:00:00
A44: 2018-02-14 | B44: Onsdag | E44: 00:00:00 | H44: 00:00:00 | K44: 00:00:00 | N44: 00:00:00
A45: 2018-02-15 | B45: Torsdag | E45: 00:00:00 | H45: 00:00:00 | K45: 00:00:00 | N45: 00:00:00
A46: 2018-02-16 | B46: Fredag | E46: 00:00:00 | H46: 00:00:00 | K46: 00:00:00 | N46: 00:00:00
A47: 2018-02-17 | B47: Lørdag | E47: 00:00:00 | H47: 00:00:00 | K47: 00:00:00 | N47: 00:00:00
A48: 2018-02-18 | B48: Søndag | E48: 00:00:00 | H48: 00:00:00 | K48: =SUM(J48-I48) -> 00:00:00 | N48: 00:00:00
A49: 2018-02-19 | B49: Mandag | E49: =SUM(D49-C49) -> 00:00:00 | H49: =SUM(G49-F49) -> 00:00:00 | K49: 00:00:00 | N49: =SUM(M49-L49) -> 00:00:00 | O49: Uke 8
A50: 2018-02-20 | B50: Tirsdag | E50: =SUM(D50-C50) -> 00:00:00 | H50: =SUM(G50-F50) -> 00:00:00 | K50: 00:00:00 | N50: =SUM(M50-L50) -> 00:00:00
A51: 2018-02-21 | B51: Onsdag | E51: 00:00:00 | H51: 00:00:00 | K51: 00:00:00 | N51: 00:00:00
A52: 2018-02-22 | B52: Torsdag | E52: 00:00:00 | H52: 00:00:00 | K52: 00:00:00 | N52: 00:00:00
A53: 2018-02-23 | B53: Fredag | E53: 00:00:00 | H53: 00:00:00 | K53: 00:00:00 | N53: 00:00:00
A54: 2018-02-24 | B54: Lørdag | E54: 00:00:00 | H54: 00:00:00 | K54: 00:00:00 | N54: 00:00:00
A55: 2018-02-25 | B55: Søndag | E55: 00:00:00 | H55: 00:00:00 | K55: 00:00:00 | N55: 00:00:00
A56: 2018-02-26 | B56: Mandag | E56: =SUM(D56-C56) -> 00:00:00 | H56: =SUM(G56-F56) -> 00:00:00 | K56: 00:00:00 | N56: =SUM(M56-L56) -> 00:00:00 | O56: Uke 9
A57: 2018-02-27 | B57: Tirsdag | E57: =SUM(D57-C57) -> 00:00:00 | H57: =SUM(G57-F57) -> 00:00:00 | K57: 00:00:00 | N57: =SUM(M57-L57) -> 00:00:00
A58: 2018-02-28 | B58: Onsdag | E58: =SUM(D58-C58) -> 00:00:00 | H58: =SUM(G58-F58) -> 00:00:00 | K58: =SUM(J58-I58) -> 00:00:00 | N58: =SUM(M58-L58) -> 00:00:00
A64: Signatur (arbeidstaker) | I64: Godkjent (overordnet)
A70: Dato | B70: Signatur | I70: Dato | J70: Signatur

Sheet Mars
B1: Overføres til neste måned - arbeidstid + / - (etter evt utbetaling): | M1: =SUM((M13+M15)-M16-M2) -> -19.25
B2: Sum timer (EA) som utbetales denne måned (trekkes fra timer til gode):
B4: =Januar!$B$4 -> Sum overtid i år (AML § 10-6) Overføres til neste måned: | M4: =SUM((Februar!M4)+M19) -> 0
B5: Utbetalt OT denne måned:
B6: OT fra forrige mnd: | E6: =SUM(Februar!M6) -> 0 | G6: OT til gode (etter utbetaling) denne mnd: | M6: =SUM(E6+M19-M5) -> 0
B8: Faktiske timer - Årsdifferanse | G8: Uke | H8: Uke | I8: Uke | J8: Uke | K8: Uke | L8: Uke | M8: Sum for
B9: =SUM((Februar!B9)+M13+M19) -> 0 | E9: =SUM(B9-(Januar!O19)) -> -78.0625 | G9: 9 | H9: =G9+1 -> 10 | I9: =H9+1 -> 11 | J9: =I9+1 -> 12 | K9: =J9+1 -> 13 | M9: måneden.
B10: Normal arbeidstid : | G10: =SUM(E31:E34) -> 0 | H10: =SUM(E35:E41) -> 0 | I10: =SUM(E42:E48) -> 0 | J10: =SUM(E49:E55) -> 0 | K10: =SUM(E56:E61) -> 0 | M10: =SUM(G10:L10) -> 0
B11: Ekstra arbeidstid (Ikke OT) : | G11: =SUM(H31:H34) -> 0 | H11: =SUM(H35:H41) -> 0 | I11: =SUM(H42:H48) -> 0 | J11: =SUM(H49:H55) -> 0 | K11: =SUM(H56:H61) -> 0 | M11: =SUM(G11:L11) -> 0
B12: =Januar!$B$12 -> Fravær i arbeidstiden: | G12: =SUM(K31:K34) -> 0 | H12: =SUM(K35:K41) -> 0 | I12: =SUM(K42:K48) -> 0 | J12: =SUM(K49:K55) -> 0 | K12: =SUM(K56:K61) -> 0 | M12: =SUM(G12:L12) -> 0
B13: Sum arbeidstid : | G13: =SUM(G10+G11-G12) -> 0 | H13: =SUM(H10+H11-H12) -> 0 | I13: 0 | J13: 0 | K13: 0 | M13: =SUM(G13:L13) -> 0 | N13: =SUM(N10+N11-N12-N16) -> 0
B14: + / - arbeidstid pr. uke : | G14: =SUM(G13-G16) -> -0.625 | H14: -1.5625 | I14: -1.5625 | J14: -1.5625 | K14: -0.8125 | M14: =SUM(G14:L14) -> -6.125
B15: Overført fra forrige måned: | M15: =Februar!$M$1 -> -13.125
B16: =Januar!$B$16 -> Normal arbeidstid pr uke : | G16: =G18 -> 0.625 | H16: 1.5625 | I16: 1.5625 | J16: 1.5625 | K16: 0.8125 | M16: =SUM(G16:L16) -> 6.125
B17: =Januar!$B$17 -> Antall dager med normal arbeidstid | G17: 2 | H17: 5 | I17: 5 | J17: 5 | K17: 2.6 | M17: =SUM(G17:L17) -> 19.6
B18: =Januar!$B$18 -> Normal arbeidstid pr dag (timer): | F18: =Januar!$F$18 -> 07:30:00 | G18: =$F$18*G17 -> 0.625 | H18: 1.5625 | I18: 1.5625 | J18: 1.5625 | K18: 0.8125
B19: =Februar!$B$19 -> Overtid: | G19: =SUM(N31:N34) -> 0 | H19: =SUM(N35:N41) -> 0 | I19: =SUM(N42:N48) -> 0 | J19: =SUM(N49:N55) -> 0 | K19: =SUM(N56:N61) -> 0 | M19: =SUM(G19:L19) -> 0
A21: MERKNADER TIL PERIODEN:
C28: Normal arbeidstid | F28: Ekstra arbeidstid | I28: Fravær i arbeidstiden | L28: =Februar!$L$28 -> Overtid | O28: Merknad
A29: Dato | B29: Dag | C29: Inn | D29: Ut | E29: Sum | F29: Inn | G29: Ut | H29: Sum | I29: Ut | J29: Inn | K29: Sum | L29: Inn | M29: Ut | N29: Sum
A31: =Februar!$A$58+1 -> 2018-03-01 | B31: Torsdag | E31: =SUM(D31-C31) -> 00:00:00 | H31: =SUM(G31-F31) -> 00:00:00 | K31: =SUM(J31-I31) -> 00:00:00 | N31: =SUM(M31-L31) -> 00:00:00 | O31: Uke 9
A32: =A31+1 -> 2018-03-02 | B32: Fredag | E32: 00:00:00 | H32: 00:00:00 | K32: 00:00:00 | N32: 00:00:00
A33: =A32+1 -> 2018-03-03 | B33: Lørdag | E33: 00:00:00 | H33: 00:00:00 | K33: 00:00:00 | N33: 00:00:00
A34: 2018-03-04 | B34: Søndag | E34: 00:00:00 | H34: 00:00:00 | K34: 00:00:00 | N34: 00:00:00
A35: 2018-03-05 | B35: Mandag | E35: 00:00:00 | H35: 00:00:00 | K35: 00:00:00 | N35: 00:00:00 | O35: Uke 10
A36: 2018-03-06 | B36: Tirsdag | E36: 00:00:00 | H36: 00:00:00 | K36: 00:00:00 | N36: 00:00:00
A37: 2018-03-07 | B37: Onsdag | E37: 00:00:00 | H37: 00:00:00 | K37: 00:00:00 | N37: 00:00:00
A38: 2018-03-08 | B38: Torsdag | E38: 00:00:00 | H38: 00:00:00 | K38: 00:00:00 | N38: 00:00:00
A39: 2018-03-09 | B39: Fredag | E39: 00:00:00 | H39: 00:00:00 | K39: 00:00:00 | N39: 00:00:00
A40: 2018-03-10 | B40: Lørdag | E40: 00:00:00 | H40: 00:00:00 | K40: 00:00:00 | N40: 00:00:00
A41: 2018-03-11 | B41: Søndag | E41: 00:00:00 | H41: 00:00:00 | K41: 00:00:00 | N41: 00:00:00
A42: 2018-03-12 | B42: Mandag | E42: 00:00:00 | H42: 00:00:00 | K42: 00:00:00 | N42: 00:00:00 | O42: Uke 11
A43: 2018-03-13 | B43: Tirsdag | E43: 00:00:00 | H43: 00:00:00 | K43: 00:00:00 | N43: 00:00:00
A44: 2018-03-14 | B44: Onsdag | E44: 00:00:00 | H44: 00:00:00 | K44: 00:00:00 | N44: 00:00:00
A45: 2018-03-15 | B45: Torsdag | E45: 00:00:00 | H45: 00:00:00 | K45: 00:00:00 | N45: 00:00:00
A46: 2018-03-16 | B46: Fredag | E46: 00:00:00 | H46: 00:00:00 | K46: 00:00:00 | N46: 00:00:00
A47: 2018-03-17 | B47: Lørdag | E47: 00:00:00 | H47: 00:00:00 | K47: 00:00:00 | N47: 00:00:00
A48: 2018-03-18 | B48: Søndag | E48: 00:00:00 | H48: 00:00:00 | K48: =SUM(J48-I48) -> 00:00:00 | N48: 00:00:00
A49: 2018-03-19 | B49: Mandag | E49: 00:00:00 | H49: 00:00:00 | K49: 00:00:00 | N49: 00:00:00 | O49: Uke 12
A50: 2018-03-20 | B50: Tirsdag | E50: 00:00:00 | H50: 00:00:00 | K50: 00:00:00 | N50: 00:00:00
A51: 2018-03-21 | B51: Onsdag | E51: 00:00:00 | H51: 00:00:00 | K51: 00:00:00 | N51: 00:00:00
A52: 2018-03-22 | B52: Torsdag | E52: 00:00:00 | H52: 00:00:00 | K52: 00:00:00 | N52: 00:00:00
A53: 2018-03-23 | B53: Fredag | E53: 00:00:00 | H53: 00:00:00 | K53: 00:00:00 | N53: 00:00:00
A54: 2018-03-24 | B54: Lørdag | E54: 00:00:00 | H54: 00:00:00 | K54: 00:00:00 | N54: 00:00:00
A55: 2018-03-25 | B55: Søndag | E55: 00:00:00 | H55: 00:00:00 | K55: 00:00:00 | N55: 00:00:00
A56: 2018-03-26 | B56: Mandag | E56: 00:00:00 | H56: 00:00:00 | K56: 00:00:00 | N56: 00:00:00 | O56: Uke 13
A57: 2018-03-27 | B57: Tirsdag | E57: 00:00:00 | H57: 00:00:00 | K57: 00:00:00 | N57: 00:00:00
A58: 2018-03-28 | B58: Onsdag | E58: 00:00:00 | H58: 00:00:00 | K58: 00:00:00 | N58: 00:00:00 | O58: Se merknad
A59: 2018-03-29 | B59: Torsdag | E59: 00:00:00 | H59: 00:00:00 | K59: 00:00:00 | N59: 00:00:00 | O59: Skærtorsdag
A60: 2018-03-30 | B60: Fredag | E60: 00:00:00 | H60: 00:00:00 | K60: 00:00:00 | N60: 00:00:00 | O60: Langfredag
A61: 2018-03-31 | B61: Lørdag | E61: 00:00:00 | H61: 00:00:00 | K61: 00:00:00 | N61: 00:00:00 | O61: Påskeaften
A64: Signatur (arbeidstaker) | I64: Godkjent (overordnet)
A70: Dato | B70: Signatur | I70: Dato | J70: Signatur

Sheet April
B1: Overføres til neste måned - arbeidstid + / - (etter evt utbetaling): | M1: =SUM((M13+M15)-M16-M2) -> -25.5
B2: Sum timer (EA) som utbetales denne måned (trekkes fra timer til gode):
B4: =Januar!$B$4 -> Sum overtid i år (AML § 10-6) Overføres til neste måned: | M4: =SUM((Mars!M4)+M19) -> 0
B5: Utbetalt OT denne måned:
B6: OT fra forrige mnd: | E6: =SUM(Mars!M6) -> 0 | G6: OT til gode (etter utbetaling) denne mnd: | M6: =SUM(E6+M19-M5) -> 0
B8: Faktiske timer - Årsdifferanse | G8: Uke | H8: Uke | I8: Uke | J8: Uke | K8: Uke | M8: Sum for
B9: =SUM((Mars!B9)+M13+M19) -> 0 | E9: =SUM(B9-(Januar!O19)) -> -78.0625 | G9: 13 | H9: =G9+1 -> 14 | I9: =H9+1 -> 15 | J9: =I9+1 -> 16 | K9: =J9+1 -> 17 | L9: =K9+1 -> 18 | M9: måneden.
B10: Normal arbeidstid : | G10: =SUM(E31) -> 0 | H10: =SUM(E32:E38) -> 0 | I10: =SUM(E39:E45) -> 0 | J10: =SUM(E46:E52) -> 0 | K10: =SUM(E53:E59) -> 0 | L10: =SUM(E60) -> 0 | M10: =SUM(G10:L10) -> 0
B11: Ekstra arbeidstid (Ikke OT) : | G11: =SUM(H31) -> 0 | H11: =SUM(H32:H38) -> 0 | I11: =SUM(H39:H45) -> 0 | J11: =SUM(H46:H52) -> 0 | K11: =SUM(H53:H59) -> 0 | L11: =SUM(H60) -> 0 | M11: =SUM(G11:L11) -> 0
B12: =Januar!$B$12 -> Fravær i arbeidstiden: | G12: =SUM(K31) -> 0 | H12: =SUM(K32:K38) -> 0 | I12: =SUM(K39:K45) -> 0 | J12: =SUM(K46:K52) -> 0 | K12: =SUM(K53:K59) -> 0 | L12: =SUM(K60) -> 0 | M12: =SUM(G12:L12) -> 0
B13: Sum arbeidstid : | G13: =SUM(G10+G11-G12) -> 0 | H13: 0 | I13: 0 | J13: 0 | K13: =SUM(K10+K11-K12) -> 0 | L13: 0 | M13: =SUM(G13:L13) -> 0 | N13: =SUM(N10+N11-N12-#REF!) -> 
B14: + / - arbeidstid pr. uke : | G14: =SUM(G13-G16) -> 0 | H14: -1.25 | I14: -1.5625 | J14: -1.5625 | K14: -1.5625 | L14: -0.3125 | M14: =SUM(G14:L14) -> -6.25
B15: Overført fra forrige måned: | M15: =Mars!$M$1 -> -19.25
B16: =Januar!$B$16 -> Normal arbeidstid pr uke : | G16: =G18 -> 0 | H16: 1.25 | I16: 1.5625 | J16: 1.5625 | K16: 1.5625 | L16: 0.3125 | M16: =SUM(G16:L16) -> 6.25
B17: =Januar!$B$17 -> Antall dager med normal arbeidstid | G17: 0 | H17: 4 | I17: 5 | J17: 5 | K17: 5 | L17: 1 | M17: =SUM(G17:L17) -> 20
B18: =Januar!$B$18 -> Normal arbeidstid pr dag (timer): | F18: =Januar!$F$18 -> 07:30:00 | G18: =$F$18*G17 -> 0 | H18: 1.25 | I18: 1.5625 | J18: 1.5625 | K18: 1.5625 | L18: 0.3125
B19: =Mars!$B$19 -> Overtid: | G19: =SUM(N31) -> 0 | H19: =SUM(N32:N38) -> 0 | I19: =SUM(N39:N45) -> 0 | J19: =SUM(N46:N52) -> 0 | K19: =SUM(N53:N59) -> 0 | L19: =SUM(N60) -> 0 | M19: =SUM(G19:L19) -> 0
A21: MERKNADER TIL PERIODEN:
C28: Normal arbeidstid | F28: Ekstra arbeidstid | I28: Fravær i arbeidstiden | L28: =Mars!$L$28 -> Overtid | O28: Merknad
A29: Dato | B29: Dag | C29: Inn | D29: Ut | E29: Sum | F29: Inn | G29: Ut | H29: Sum | I29: Ut | J29: Inn | K29: Sum | L29: Inn | M29: Ut | N29: Sum
A31: =Mars!$A$61+1 -> 2018-04-01 | B31: Søndag | E31: =SUM(D31-C31) -> 00:00:00 | H31: =SUM(G31-F31) -> 00:00:00 | K31: =SUM(J31-I31) -> 00:00:00 | N31: =SUM(M31-L31) -> 00:00:00 | O31: Første påskedag
A32: =A31+1 -> 2018-04-02 | B32: Mandag | E32: 00:00:00 | H32: 00:00:00 | K32: 00:00:00 | N32: 00:00:00 | O32: Andre påskedag
A33: =A32+1 -> 2018-04-03 | B33: Tirsdag | E33: =SUM(D33-C33) -> 00:00:00 | H33: =SUM(G33-F33) -> 00:00:00 | K33: =SUM(J33-I33) -> 00:00:00 | N33: =SUM(M33-L33) -> 00:00:00 | O33: Uke 14
A34: 2018-04-04 | B34: Onsdag | E34: 00:00:00 | H34: 00:00:00 | K34: 00:00:00 | N34: 00:00:00
A35: 2018-04-05 | B35: Torsdag | E35: 00:00:00 | H35: 00:00:00 | K35: 00:00:00 | N35: 00:00:00
A36: 2018-04-06 | B36: Fredag | E36: 00:00:00 | H36: 00:00:00 | K36: 00:00:00 | N36: 00:00:00
A37: 2018-04-07 | B37: Lørdag | E37: 00:00:00 | H37: 00:00:00 | K37: 00:00:00 | N37: 00:00:00
A38: 2018-04-08 | B38: Søndag | E38: 00:00:00 | H38: 00:00:00 | K38: 00:00:00 | N38: 00:00:00
A39: 2018-04-09 | B39: Mandag | E39: =SUM(D39-C39) -> 00:00:00 | H39: =SUM(G39-F39) -> 00:00:00 | K39: =SUM(J39-I39) -> 00:00:00 | N39: =SUM(M39-L39) -> 00:00:00 | O39: Uke 15
A40: 2018-04-10 | B40: Tirsdag | E40: =SUM(D40-C40) -> 00:00:00 | H40: =SUM(G40-F40) -> 00:00:00 | K40: =SUM(J40-I40) -> 00:00:00 | N40: =SUM(M40-L40) -> 00:00:00
A41: 2018-04-11 | B41: Onsdag | E41: 00:00:00 | H41: 00:00:00 | K41: 00:00:00 | N41: 00:00:00
A42: 2018-04-12 | B42: Torsdag | E42: 00:00:00 | H42: 00:00:00 | K42: 00:00:00 | N42: 00:00:00
A43: 2018-04-13 | B43: Fredag | E43: 00:00:00 | H43: 00:00:00 | K43: 00:00:00 | N43: 00:00:00
A44: 2018-04-14 | B44: Lørdag | E44: 00:00:00 | H44: 00:00:00 | K44: 00:00:00 | N44: 00:00:00
A45: 2018-04-15 | B45: Søndag | E45: 00:00:00 | H45: 00:00:00 | K45: 00:00:00 | N45: 00:00:00
A46: 2018-04-16 | B46: Mandag | E46: =SUM(D46-C46) -> 00:00:00 | H46: =SUM(G46-F46) -> 00:00:00 | K46: =SUM(J46-I46) -> 00:00:00 | N46: =SUM(M46-L46) -> 00:00:00 | O46: Uke 16
A47: 2018-04-17 | B47: Tirsdag | E47: =SUM(D47-C47) -> 00:00:00 | H47: =SUM(G47-F47) -> 00:00:00 | K47: =SUM(J47-I47) -> 00:00:00 | N47: =SUM(M47-L47) -> 00:00:00
A48: 2018-04-18 | B48: Onsdag | E48: 00:00:00 | H48: 00:00:00 | K48: 00:00:00 | N48: 00:00:00
A49: 2018-04-19 | B49: Torsdag | E49: 00:00:00 | H49: 00:00:00 | K49: =SUM(J49-I49) -> 00:00:00 | N49: 00:00:00
A50: 2018-04-20 | B50: Fredag | E50: 00:00:00 | H50: 00:00:00 | K50: 00:00:00 | N50: 00:00:00
A51: 2018-04-21 | B51: Lørdag | E51: 00:00:00 | H51: 00:00:00 | K51: 00:00:00 | N51: 00:00:00
A52: 2018-04-22 | B52: Søndag | E52: 00:00:00 | H52: 00:00:00 | K52: 00:00:00 | N52: 00:00:00
A53: 2018-04-23 | B53: Mandag | E53: =SUM(D53-C53) -> 00:00:00 | H53: =SUM(G53-F53) -> 00:00:00 | K53: 00:00:00 | N53: =SUM(M53-L53) -> 00:00:00 | O53: Uke 17
A54: 2018-04-24 | B54: Tirsdag | E54: =SUM(D54-C54) -> 00:00:00 | H54: =SUM(G54-F54) -> 00:00:00 | K54: 00:00:00 | N54: =SUM(M54-L54) -> 00:00:00
A55: 2018-04-25 | B55: Onsdag | E55: 00:00:00 | H55: 00:00:00 | K55: 00:00:00 | N55: 00:00:00
A56: 2018-04-26 | B56: Torsdag | E56: 00:00:00 | H56: 00:00:00 | K56: 00:00:00 | N56: 00:00:00
A57: 2018-04-27 | B57: Fredag | E57: 00:00:00 | H57: 00:00:00 | K57: 00:00:00 | N57: 00:00:00
A58: 2018-04-28 | B58: Lørdag | E58: 00:00:00 | H58: 00:00:00 | K58: 00:00:00 | N58: 00:00:00
A59: 2018-04-29 | B59: Søndag | E59: 00:00:00 | H59: 00:00:00 | K59: 00:00:00 | N59: 00:00:00
A60: 2018-04-30 | B60: Mandag | E60: =SUM(D60-C60) -> 00:00:00 | H60: =SUM(G60-F60) -> 00:00:00 | K60: 00:00:00 | N60: =SUM(M60-L60) -> 00:00:00 | O60: Uke 18
A63: Signatur (arbeidstaker) | I63: Godkjent (overordnet)
A69: Dato | B69: Signatur | I69: Dato | J69: Signatur

Sheet Mai
B1: Overføres til neste måned - arbeidstid + / - (etter evt utbetaling): | M1: =SUM((M13+M15)-M16-M2) -> -31.4375
B2: Sum timer (EA) som utbetales denne måned (trekkes fra timer til gode):
B4: =Januar!$B$4 -> Sum overtid i år (AML § 10-6) Overføres til neste måned: | M4: =SUM((April!M4)+M19) -> 0
B5: Utbetalt OT denne måned:
B6: OT fra forrige mnd: | E6: =SUM(April!M6) -> 0 | G6: OT til gode (etter utbetaling) denne mnd: | M6: =SUM(E6+M19-M5) -> 0
B8: Faktiske timer - Årsdifferanse | G8: Uke | H8: Uke | I8: Uke | J8: Uke | K8: Uke | L8: Uke | M8: Sum for
B9: =SUM((April!B9)+M13+M19) -> 0 | E9: =SUM(B9-(Januar!O19)) -> -78.0625 | G9: 17 | H9: =G9+1 -> 18 | I9: =H9+1 -> 19 | J9: =I9+1 -> 20 | K9: =J9+1 -> 21 | L9: =K9+1 -> 22 | M9: måneden.
B10: Normal arbeidstid : | H10: =SUM(E31:E36) -> 0 | I10: =SUM(E37:E43) -> 0 | J10: =SUM(E44:E50) -> 0 | K10: =SUM(E51:E57) -> 0 | L10: =SUM(E58:E61) -> 0 | M10: =SUM(G10:L10) -> 0
B11: Ekstra arbeidstid (Ikke OT) : | H11: =SUM(H31:H36) -> 0 | I11: =SUM(H37:H43) -> 0 | J11: =SUM(H44:H50) -> 0 | K11: =SUM(H51:H57) -> 0 | L11: =SUM(H58:H61) -> 0 | M11: =SUM(G11:L11) -> 0
B12: =Januar!$B$12 -> Fravær i arbeidstiden: | H12: =SUM(K31:K36) -> 0 | I12: =SUM(K37:K43) -> 0 | J12: =SUM(K44:K50) -> 0 | K12: =SUM(K51:K57) -> 0 | L12: =SUM(K58:K61) -> 0 | M12: =SUM(G12:L12) -> 0
B13: Sum arbeidstid : | H13: =SUM(H10+H11-H12) -> 0 | I13: =SUM(I10+I11-I12) -> 0 | J13: =SUM(J10+J11-J12) -> 0 | K13: 0 | L13: 0 | M13: =SUM(G13:L13) -> 0 | N13: =SUM(N10+N11-N12-N16) -> 0
B14: + / - arbeidstid pr. uke : | H14: =SUM(H13-H16) -> -0.9375 | I14: -1.25 | J14: -1.25 | K14: -1.25 | L14: -1.25 | M14: =SUM(G14:L14) -> -5.9375
B15: Overført fra forrige måned: | M15: =April!$M$1 -> -25.5
B16: =Januar!$B$16 -> Normal arbeidstid pr uke : | H16: =H18 -> 0.9375 | I16: 1.25 | J16: 1.25 | K16: 1.25 | L16: 1.25 | M16: =SUM(G16:L16) -> 5.9375
B17: =Januar!$B$17 -> Antall dager med normal arbeidstid | H17: 3 | I17: 4 | J17: 4 | K17: 4 | L17: 4 | M17: =SUM(G17:L17) -> 19
B18: =Januar!$B$18 -> Normal arbeidstid pr dag (timer): | F18: =Januar!$F$18 -> 07:30:00 | H18: =$F$18*H17 -> 0.9375 | I18: 1.25 | J18: 1.25 | K18: 1.25 | L18: 1.25
B19: =April!$B$19 -> Overtid: | H19: =SUM(N31:N36) -> 0 | I19: =SUM(N37:N43) -> 0 | J19: =SUM(N44:N50) -> 0 | K19: =SUM(N51:N57) -> 0 | L19: =SUM(N58:N61) -> 0 | M19: =SUM(G19:L19) -> 0
A21: MERKNADER TIL PERIODEN:
C28: Normal arbeidstid | F28: Ekstra arbeidstid | I28: Fravær i arbeidstiden | L28: =April!$L$28 -> Overtid | O28: Merknad
A29: Dato | B29: Dag | C29: Inn | D29: Ut | E29: Sum | F29: Inn | G29: Ut | H29: Sum | I29: Ut | J29: Inn | K29: Sum | L29: Inn | M29: Ut | N29: Sum
A31: =April!$A$60+1 -> 2018-05-01 | B31: Tirsdag | E31: =SUM(D31-C31) -> 00:00:00 | H31: =SUM(G31-F31) -> 00:00:00 | K31: =SUM(J31-I31) -> 00:00:00 | N31: =SUM(M31-L31) -> 00:00:00 | O31: Off.H.dag/Uke 18
A32: =A31+1 -> 2018-05-02 | B32: Onsdag | E32: =SUM(D32-C32) -> 00:00:00 | H32: =SUM(G32-F32) -> 00:00:00 | K32: =SUM(J32-I32) -> 00:00:00 | N32: =SUM(M32-L32) -> 00:00:00
A33: =A32+1 -> 2018-05-03 | B33: Torsdag | E33: =SUM(D33-C33) -> 00:00:00 | H33: =SUM(G33-F33) -> 00:00:00 | K33: =SUM(J33-I33) -> 00:00:00 | N33: =SUM(M33-L33) -> 00:00:00
A34: 2018-05-04 | B34: Fredag | E34: 00:00:00 | H34: 00:00:00 | K34: 00:00:00 | N34: 00:00:00
A35: 2018-05-05 | B35: Lørdag | E35: 00:00:00 | H35: 00:00:00 | K35: 00:00:00 | N35: 00:00:00
A36: 2018-05-06 | B36: Søndag | E36: 00:00:00 | H36: 00:00:00 | K36: 00:00:00 | N36: 00:00:00
A37: 2018-05-07 | B37: Mandag | E37: 00:00:00 | H37: 00:00:00 | K37: 00:00:00 | N37: 00:00:00 | O37: Uke 19
A38: 2018-05-08 | B38: Tirsdag | E38: 00:00:00 | H38: 00:00:00 | K38: 00:00:00 | N38: 00:00:00 | O38: Frigjøringsdag
A39: 2018-05-09 | B39: Onsdag | E39: 00:00:00 | H39: 00:00:00 | K39: 00:00:00 | N39: 00:00:00
A40: 2018-05-10 | B40: Torsdag | E40: 00:00:00 | H40: 00:00:00 | K40: 00:00:00 | N40: 00:00:00 | O40: Kr. H.dag
A41: 2018-05-11 | B41: Fredag | E41: 00:00:00 | H41: 00:00:00 | K41: 00:00:00 | N41: 00:00:00
A42: 2018-05-12 | B42: Lørdag | E42: 00:00:00 | H42: 00:00:00 | K42: 00:00:00 | N42: 00:00:00
A43: 2018-05-13 | B43: Søndag | E43: 00:00:00 | H43: 00:00:00 | K43: 00:00:00 | N43: 00:00:00
A44: 2018-05-14 | B44: Mandag | E44: 00:00:00 | H44: 00:00:00 | K44: 00:00:00 | N44: 00:00:00 | O44: Uke 20
A45: 2018-05-15 | B45: Tirsdag | E45: 00:00:00 | H45: 00:00:00 | K45: 00:00:00 | N45: 00:00:00
A46: 2018-05-16 | B46: Onsdag | E46: 00:00:00 | H46: 00:00:00 | K46: 00:00:00 | N46: 00:00:00
A47: 2018-05-17 | B47: Torsdag | E47: 00:00:00 | H47: 00:00:00 | K47: 00:00:00 | N47: 00:00:00 | O47: Grunnlovsdag
A48: 2018-05-18 | B48: Fredag | E48: 00:00:00 | H48: 00:00:00 | K48: =SUM(J48-I48) -> 00:00:00 | N48: 00:00:00
A49: 2018-05-19 | B49: Lørdag | E49: 00:00:00 | H49: 00:00:00 | K49: 00:00:00 | N49: 00:00:00 | O49: Pinseaften
A50: 2018-05-20 | B50: Søndag | E50: 00:00:00 | H50: 00:00:00 | K50: 00:00:00 | N50: 00:00:00 | O50: 1. Pinsdag
A51: 2018-05-21 | B51: Mandag | E51: 00:00:00 | H51: 00:00:00 | K51: 00:00:00 | N51: 00:00:00 | O51: 2. Pinsedag
A52: 2018-05-22 | B52: Tirsdag | E52: 00:00:00 | H52: 00:00:00 | K52: 00:00:00 | N52: 00:00:00 | O52: Uke 21
A53: 2018-05-23 | B53: Onsdag | E53: 00:00:00 | H53: 00:00:00 | K53: 00:00:00 | N53: 00:00:00
A54: 2018-05-24 | B54: Torsdag | E54: 00:00:00 | H54: 00:00:00 | K54: 00:00:00 | N54: 00:00:00
A55: 2018-05-25 | B55: Fredag | E55: 00:00:00 | H55: 00:00:00 | K55: 00:00:00 | N55: 00:00:00
A56: 2018-05-26 | B56: Lørdag | E56: 00:00:00 | H56: 00:00:00 | K56: 00:00:00 | N56: 00:00:00
A57: 2018-05-27 | B57: Søndag | E57: 00:00:00 | H57: 00:00:00 | K57: 00:00:00 | N57: 00:00:00
A58: 2018-05-28 | B58: Mandag | E58: 00:00:00 | H58: 00:00:00 | K58: 00:00:00 | N58: 00:00:00 | O58: Uke 22
A59: 2018-05-29 | B59: Tirsdag | E59: 00:00:00 | H59: 00:00:00 | K59: 00:00:00 | N59: 00:00:00
A60: 2018-05-30 | B60: Onsdag | E60: 00:00:00 | H60: 00:00:00 | K60: 00:00:00 | N60: 00:00:00
A61: 2018-05-31 | B61: Torsdag | E61: 00:00:00 | H61: 00:00:00 | K61: =SUM(J61-I61) -> 00:00:00 | N61: 00:00:00
A64: Signatur (arbeidstaker) | I64: Godkjent (overordnet)
A70: Dato | B70: Signatur | I70: Dato | J70: Signatur

Sheet Juni
B1: Overføres til neste måned - arbeidstid + / - (etter evt utbetaling): | M1: =SUM((M13+M15)-M16-M2) -> -38
B2: Sum timer (EA) som utbetales denne måned (trekkes fra timer til gode):
B4: =Januar!$B$4 -> Sum overtid i år (AML § 10-6) Overføres til neste måned: | M4: =SUM((Mai!M4)+M19) -> 0
B5: Utbetalt OT denne måned:
B6: OT fra forrige mnd: | E6: =SUM(Mai!M6) -> 0 | G6: OT til gode (etter utbetaling) denne mnd: | M6: =SUM(E6+M19-M5) -> 0
B8: Faktiske timer - Årsdifferanse | G8: Uke | H8: Uke | I8: Uke | J8: Uke | K8: Uke | L8: Uke | M8: Sum for
B9: =SUM((Mai!B9)+M13+M19) -> 0 | E9: =SUM(B9-(Januar!O19)) -> -78.0625 | G9: 21 | H9: =G9+1 -> 22 | I9: =H9+1 -> 23 | J9: =I9+1 -> 24 | K9: =J9+1 -> 25 | L9: =K9+1 -> 26 | M9: måneden.
B10: Normal arbeidstid : | H10: =SUM(E31:E33) -> 0 | I10: =SUM(E34:E40) -> 0 | J10: =SUM(E41:E47) -> 0 | K10: =SUM(E48:E54) -> 0 | L10: =SUM(E55:E60) -> 0 | M10: =SUM(G10:L10) -> 0
B11: Ekstra arbeidstid (Ikke OT) : | H11: =SUM(H31:H33) -> 0 | I11: =SUM(H34:H40) -> 0 | J11: =SUM(H41:H47) -> 0 | K11: =SUM(H48:H54) -> 0 | L11: =SUM(H55:H60) -> 0 | M11: =SUM(G11:L11) -> 0
B12: =Januar!$B$12 -> Fravær i arbeidstiden: | H12: =SUM(K31:K33) -> 0 | I12: =SUM(K34:K40) -> 0 | J12: =SUM(K41:K47) -> 0 | K12: =SUM(K48:K54) -> 0 | L12: =SUM(K55:K60) -> 0 | M12: =SUM(G12:L12) -> 0
B13: Sum | H13: =SUM(H10+H11-H12) -> 0 | I13: =SUM(I10+I11-I12) -> 0 | J13: =SUM(J10+J11-J12) -> 0 | K13: =SUM(K10+K11-K12) -> 0 | L13: =SUM(L10+L11-L12) -> 0 | M13: =SUM(G13:L13) -> 0 | N13: =SUM(N10+N11-N12-N16) -> 0
B14: + / - arbeidstid pr. uke : | H14: =SUM(H13-H16) -> -0.3125 | I14: =SUM(I13-I16) -> -1.5625 | J14: =SUM(J13-J16) -> -1.5625 | K14: =SUM(K13-K16) -> -1.5625 | L14: =SUM(L13-L16) -> -1.5625 | M14: =SUM(G14:L14) -> -6.5625
B15: Overført fra forrige måned: | M15: =Mai!$M$1 -> -31.4375
B16: =Januar!$B$16 -> Normal arbeidstid pr uke : | H16: =H18 -> 0.3125 | I16: =I18 -> 1.5625 | J16: =J18 -> 1.5625 | K16: =K18 -> 1.5625 | L16: =L18 -> 1.5625 | M16: =SUM(G16:L16) -> 6.5625
B17: =Januar!$B$17 -> Antall dager med normal arbeidstid | H17: 1 | I17: 5 | J17: 5 | K17: 5 | L17: 5 | M17: =SUM(G17:L17) -> 21
B18: =Januar!$B$18 -> Normal arbeidstid pr dag (timer): | F18: =Januar!$F$18 -> 07:30:00 | G18: =$F$18*G17 -> 0 | H18: 0.3125 | I18: 1.5625 | J18: 1.5625 | K18: 1.5625 | L18: 1.5625
B19: =Mai!$B$19 -> Overtid: | H19: =SUM(N31:N33) -> 0 | I19: =SUM(N34:N40) -> 0 | J19: =SUM(N41:N47) -> 0 | K19: =SUM(N48:N54) -> 0 | L19: =SUM(N55:N60) -> 0 | M19: =SUM(G19:L19) -> 0
A21: MERKNADER TIL PERIODEN:
C28: Normal arbeidstid | F28: Ekstra arbeidstid | I28: Fravær i arbeidstiden | L28: =Mai!$L$28 -> Overtid | O28: Merknad
A29: Dato | B29: Dag | C29: Inn | D29: Ut | E29: Sum | F29: Inn | G29: Ut | H29: Sum | I29: Ut | J29: Inn | K29: Sum | L29: Inn | M29: Ut | N29: Sum
A31: =Mai!$A$61+1 -> 2018-06-01 | B31: Fredag | E31: =SUM(D31-C31) -> 00:00:00 | H31: =SUM(G31-F31) -> 00:00:00 | K31: =SUM(J31-I31) -> 00:00:00 | N31: =SUM(M31-L31) -> 00:00:00 | O31: Uke 22
A32: =A31+1 -> 2018-06-02 | B32: Lørdag | E32: =SUM(D32-C32) -> 00:00:00 | H32: =SUM(G32-F32) -> 00:00:00 | K32: =SUM(J32-I32) -> 00:00:00 | N32: =SUM(M32-L32) -> 00:00:00
A33: =A32+1 -> 2018-06-03 | B33: Søndag | E33: 00:00:00 | H33: 00:00:00 | K33: 00:00:00 | N33: 00:00:00
A34: 2018-06-04 | B34: Mandag | E34: 00:00:00 | H34: 00:00:00 | K34: 00:00:00 | N34: 00:00:00
A35: 2018-06-05 | B35: Tirsdag | E35: 00:00:00 | H35: 00:00:00 | K35: 00:00:00 | N35: 00:00:00 | O35: Uke 23
A36: 2018-06-06 | B36: Onsdag | E36: 00:00:00 | H36: 00:00:00 | K36: 00:00:00 | N36: 00:00:00
A37: 2018-06-07 | B37: Torsdag | E37: 00:00:00 | H37: 00:00:00 | K37: 00:00:00 | N37: 00:00:00
A38: 2018-06-08 | B38: Fredag | E38: 00:00:00 | H38: 00:00:00 | K38: 00:00:00 | N38: 00:00:00
A39: 2018-06-09 | B39: Lørdag | E39: 00:00:00 | H39: 00:00:00 | K39: 00:00:00 | N39: 00:00:00
A40: 2018-06-10 | B40: Søndag | E40: 00:00:00 | H40: 00:00:00 | K40: 00:00:00 | N40: 00:00:00
A41: 2018-06-11 | B41: Mandag | E41: =SUM(D41-C41) -> 00:00:00 | H41: =SUM(G41-F41) -> 00:00:00 | K41: =SUM(J41-I41) -> 00:00:00 | N41: =SUM(M41-L41) -> 00:00:00 | O41: Uke 24
A42: 2018-06-12 | B42: Tirsdag | E42: =SUM(D42-C42) -> 00:00:00 | H42: =SUM(G42-F42) -> 00:00:00 | K42: =SUM(J42-I42) -> 00:00:00 | N42: =SUM(M42-L42) -> 00:00:00
A43: 2018-06-13 | B43: Onsdag | E43: 00:00:00 | H43: 00:00:00 | K43: 00:00:00 | N43: 00:00:00
A44: 2018-06-14 | B44: Torsdag | E44: 00:00:00 | H44: 00:00:00 | K44: 00:00:00 | N44: 00:00:00
A45: 2018-06-15 | B45: Fredag | E45: 00:00:00 | H45: 00:00:00 | K45: 00:00:00 | N45: 00:00:00
A46: 2018-06-16 | B46: Lørdag | E46: 00:00:00 | H46: 00:00:00 | K46: 00:00:00 | N46: 00:00:00
A47: 2018-06-17 | B47: Søndag | E47: 00:00:00 | H47: 00:00:00 | K47: 00:00:00 | N47: 00:00:00
A48: 2018-06-18 | B48: Mandag | E48: =SUM(D48-C48) -> 00:00:00 | H48: =SUM(G48-F48) -> 00:00:00 | K48: =SUM(J48-I48) -> 00:00:00 | N48: =SUM(M48-L48) -> 00:00:00 | O48: Uke 25
A49: 2018-06-19 | B49: Tirsdag | E49: =SUM(D49-C49) -> 00:00:00 | H49: =SUM(G49-F49) -> 00:00:00 | K49: =SUM(J49-I49) -> 00:00:00 | N49: =SUM(M49-L49) -> 00:00:00
A50: 2018-06-20 | B50: Onsdag | E50: 00:00:00 | H50: 00:00:00 | K50: =SUM(J50-I50) -> 00:00:00 | N50: 00:00:00
A51: 2018-06-21 | B51: Torsdag | E51: 00:00:00 | H51: 00:00:00 | K51: 00:00:00 | N51: 00:00:00
A52: 2018-06-22 | B52: Fredag | E52: 00:00:00 | H52: 00:00:00 | K52: 00:00:00 | N52: 00:00:00
A53: 2018-06-23 | B53: Lørdag | E53: 00:00:00 | H53: 00:00:00 | K53: 00:00:00 | N53: 00:00:00
A54: 2018-06-24 | B54: Søndag | E54: 00:00:00 | H54: 00:00:00 | K54: 00:00:00 | N54: 00:00:00
A55: 2018-06-25 | B55: Mandag | E55: =SUM(D55-C55) -> 00:00:00 | H55: =SUM(G55-F55) -> 00:00:00 | K55: 00:00:00 | N55: =SUM(M55-L55) -> 00:00:00 | O55: Uke 26
A56: 2018-06-26 | B56: Tirsdag | E56: =SUM(D56-C56) -> 00:00:00 | H56: =SUM(G56-F56) -> 00:00:00 | K56: 00:00:00 | N56: =SUM(M56-L56) -> 00:00:00
A57: 2018-06-27 | B57: Onsdag | E57: 00:00:00 | H57: 00:00:00 | K57: 00:00:00 | N57: 00:00:00
A58: 2018-06-28 | B58: Torsdag | E58: 00:00:00 | H58: 00:00:00 | K58: 00:00:00 | N58: 00:00:00
A59: 2018-06-29 | B59: Fredag | E59: 00:00:00 | H59: 00:00:00 | K59: 00:00:00 | N59: 00:00:00
A60: 2018-06-30 | B60: Lørdag | E60: 00:00:00 | H60: 00:00:00 | K60: 00:00:00 | N60: 00:00:00
A63: Signatur (arbeidstaker) | I63: Godkjent (overordnet)
A69: Dato | B69: Signatur | I69: Dato | J69: Signatur

Sheet Juli
B1: Overføres til neste måned - arbeidstid + / - (etter evt utbetaling): | M1: =SUM((M13+M15)-M16-M2) -> -44.875
B2: Sum timer (EA) som utbetales denne måned (trekkes fra timer til gode):
B4: =Januar!$B$4 -> Sum overtid i år (AML § 10-6) Overføres til neste måned: | M4: =SUM((Juni!M4)+M19) -> 0
B5: Utbetalt OT denne måned:
B6: OT fra forrige mnd: | E6: =SUM(Juni!M6) -> 0 | G6: OT til gode (etter utbetaling) denne mnd: | M6: =SUM(E6+M19-M5) -> 0
B8: Faktiske timer - Årsdifferanse | G8: Uke | H8: Uke | I8: Uke | J8: Uke | K8: Uke | L8: Uke | M8: Sum for
B9: =SUM((Juni!B9)+M13+M19) -> 0 | E9: =SUM(B9-(Januar!O19)) -> -78.0625 | G9: 26 | H9: =G9+1 -> 27 | I9: =H9+1 -> 28 | J9: =I9+1 -> 29 | K9: =J9+1 -> 30 | L9: =K9+1 -> 31 | M9: måneden.
B10: Normal arbeidstid : | G10: =SUM(E31) -> 0 | H10: =SUM(E32:E38) -> 0 | I10: =SUM(E39:E45) -> 0 | J10: =SUM(E46:E52) -> 0 | K10: =SUM(E53:E59) -> 0 | L10: =SUM(E60:E61) -> 0 | M10: =SUM(G10:L10) -> 0
B11: Ekstra arbeidstid (Ikke OT) : | G11: =SUM(H31) -> 0 | H11: =SUM(H32:H38) -> 0 | I11: =SUM(H39:H45) -> 0 | J11: =SUM(H46:H52) -> 0 | K11: =SUM(H53:H59) -> 0 | L11: =SUM(H60:H61) -> 0 | M11: =SUM(G11:L11) -> 0
B12: =Januar!$B$12 -> Fravær i arbeidstiden: | G12: =SUM(K31) -> 0 | H12: =SUM(K32:K38) -> 0 | I12: =SUM(K39:K45) -> 0 | J12: =SUM(K46:K52) -> 0 | K12: =SUM(K53:K59) -> 0 | L12: =SUM(K60:K61) -> 0 | M12: =SUM(G12:L12) -> 0
B13: Sum | G13: =SUM(G10+G11-G12) -> 0 | H13: 0 | I13: 0 | J13: 0 | K13: 0 | L13: =SUM(L10+L11-L12) -> 0 | M13: =SUM(G13:L13) -> 0 | N13: =SUM(N10+N11-N12-N16) -> 0
B14: + / - arbeidstid pr. uke : | G14: =SUM(G13-G16) -> 0 | H14: -1.5625 | I14: -1.5625 | J14: -1.5625 | K14: -1.5625 | L14: -0.625 | M14: =SUM(G14:L14) -> -6.875
B15: Overført fra forrige måned: | M15: =Juni!$M$1 -> -38
B16: Normal arbeidstid pr uke | G16: =G18 -> 0 | H16: 1.5625 | I16: 1.5625 | J16: 1.5625 | K16: 1.5625 | L16: 0.625 | M16: =SUM(G16:L16) -> 6.875
B17: =Januar!$B$17 -> Antall dager med normal arbeidstid | G17: 0 | H17: 5 | I17: 5 | J17: 5 | K17: 5 | L17: 2 | M17: =SUM(G17:L17) -> 22
B18: =Januar!$B$18 -> Normal arbeidstid pr dag (timer): | F18: =Januar!$F$18 -> 07:30:00 | G18: =$F$18*G17 -> 0 | H18: 1.5625 | I18: 1.5625 | J18: 1.5625 | K18: 1.5625 | L18: 0.625
B19: =Juni!$B$19 -> Overtid: | G19: =SUM(N31) -> 0 | H19: =SUM(N32:N38) -> 0 | I19: =SUM(N39:N45) -> 0 | J19: =SUM(N46:N52) -> 0 | K19: =SUM(N53:N59) -> 0 | L19: =SUM(N60:N61) -> 0 | M19: =SUM(G19:L19) -> 0
A21: MERKNADER TIL PERIODEN:
C28: Normal arbeidstid | F28: Ekstra arbeidstid | I28: Fravær i arbeidstiden | L28: =Juni!$L$28 -> Overtid | O28: Merknad
A29: Dato | B29: Dag | C29: Inn | D29: Ut | E29: Sum | F29: Inn | G29: Ut | H29: Sum | I29: Ut | J29: Inn | K29: Sum | L29: Inn | M29: Ut | N29: Sum
A31: =Juni!$A$60+1 -> 2018-07-01 | B31: Søndag | E31: =SUM(D31-C31) -> 00:00:00 | H31: =SUM(G31-F31) -> 00:00:00 | K31: =SUM(J31-I31) -> 00:00:00 | N31: =SUM(M31-L31) -> 00:00:00 | O31: Uke 26
A32: =A31+1 -> 2018-07-02 | B32: Mandag | E32: =SUM(D32-C32) -> 00:00:00 | H32: =SUM(G32-F32) -> 00:00:00 | K32: =SUM(J32-I32) -> 00:00:00 | N32: =SUM(M32-L32) -> 00:00:00 | O32: Uke 27
A33: =A32+1 -> 2018-07-03 | B33: Tirsdag | E33: =SUM(D33-C33) -> 00:00:00 | H33: =SUM(G33-F33) -> 00:00:00 | K33: =SUM(J33-I33) -> 00:00:00 | N33: =SUM(M33-L33) -> 00:00:00
A34: 2018-07-04 | B34: Onsdag | E34: =SUM(D34-C34) -> 00:00:00 | H34: =SUM(G34-F34) -> 00:00:00 | K34: =SUM(J34-I34) -> 00:00:00 | N34: =SUM(M34-L34) -> 00:00:00
A35: 2018-07-05 | B35: Torsdag | E35: 00:00:00 | H35: 00:00:00 | K35: 00:00:00 | N35: 00:00:00
A36: 2018-07-06 | B36: Fredag | E36: 00:00:00 | H36: 00:00:00 | K36: 00:00:00 | N36: 00:00:00
A37: 2018-07-07 | B37: Lørdag | E37: 00:00:00 | H37: 00:00:00 | K37: 00:00:00 | N37: 00:00:00
A38: 2018-07-08 | B38: Søndag | E38: 00:00:00 | H38: 00:00:00 | K38: 00:00:00 | N38: 00:00:00
A39: 2018-07-09 | B39: Mandag | E39: 00:00:00 | H39: 00:00:00 | K39: 00:00:00 | N39: 00:00:00 | O39: Uke 28
A40: 2018-07-10 | B40: Tirsdag | E40: 00:00:00 | H40: 00:00:00 | K40: 00:00:00 | N40: 00:00:00
A41: 2018-07-11 | B41: Onsdag | E41: 00:00:00 | H41: 00:00:00 | K41: 00:00:00 | N41: 00:00:00
A42: 2018-07-12 | B42: Torsdag | E42: 00:00:00 | H42: 00:00:00 | K42: 00:00:00 | N42: 00:00:00
A43: 2018-07-13 | B43: Fredag | E43: 00:00:00 | H43: 00:00:00 | K43: 00:00:00 | N43: 00:00:00
A44: 2018-07-14 | B44: Lørdag | E44: 00:00:00 | H44: 00:00:00 | K44: 00:00:00 | N44: 00:00:00
A45: 2018-07-15 | B45: Søndag | E45: 00:00:00 | H45: 00:00:00 | K45: 00:00:00 | N45: 00:00:00
A46: 2018-07-16 | B46: Mandag | E46: 00:00:00 | H46: 00:00:00 | K46: 00:00:00 | N46: 00:00:00 | O46: Uke 29
A47: 2018-07-17 | B47: Tirsdag | E47: 00:00:00 | H47: 00:00:00 | K47: 00:00:00 | N47: 00:00:00
A48: 2018-07-18 | B48: Onsdag | E48: 00:00:00 | H48: 00:00:00 | K48: 00:00:00 | N48: 00:00:00
A49: 2018-07-19 | B49: Torsdag | E49: 00:00:00 | H49: 00:00:00 | K49: =SUM(J49-I49) -> 00:00:00 | N49: 00:00:00
A50: 2018-07-20 | B50: Fredag | E50: 00:00:00 | H50: 00:00:00 | K50: 00:00:00 | N50: 00:00:00
A51: 2018-07-21 | B51: Lørdag | E51: 00:00:00 | H51: 00:00:00 | K51: 00:00:00 | N51: 00:00:00
A52: 2018-07-22 | B52: Søndag | E52: 00:00:00 | H52: 00:00:00 | K52: 00:00:00 | N52: 00:00:00
A53: 2018-07-23 | B53: Mandag | E53: 00:00:00 | H53: 00:00:00 | K53: 00:00:00 | N53: 00:00:00 | O53: Uke 30
A54: 2018-07-24 | B54: Tirsdag | E54: 00:00:00 | H54: 00:00:00 | K54: 00:00:00 | N54: 00:00:00
A55: 2018-07-25 | B55: Onsdag | E55: 00:00:00 | H55: 00:00:00 | K55: 00:00:00 | N55: 00:00:00
A56: 2018-07-26 | B56: Torsdag | E56: 00:00:00 | H56: 00:00:00 | K56: 00:00:00 | N56: 00:00:00
A57: 2018-07-27 | B57: Fredag | E57: 00:00:00 | H57: 00:00:00 | K57: 00:00:00 | N57: 00:00:00
A58: 2018-07-28 | B58: Lørdag | E58: 00:00:00 | H58: 00:00:00 | K58: 00:00:00 | N58: 00:00:00
A59: 2018-07-29 | B59: Søndag | E59: 00:00:00 | H59: 00:00:00 | K59: 00:00:00 | N59: 00:00:00
A60: 2018-07-30 | B60: Mandag | E60: 00:00:00 | H60: 00:00:00 | K60: 00:00:00 | N60: 00:00:00 | O60: Uke 31
A61: 2018-07-31 | B61: Tirsdag | E61: 00:00:00 | H61: 00:00:00 | K61: 00:00:00 | N61: 00:00:00
A64: Signatur (arbeidstaker) | I64: Godkjent (overordnet)
A70: Dato | B70: Signatur | I70: Dato | J70: Signatur

Sheet August
B1: Overføres til neste måned - arbeidstid + / - (etter evt utbetaling): | M1: =SUM((M13+M15)-M16-M2) -> -52.0625
B2: Sum timer (EA) som utbetales denne måned (trekkes fra timer til gode):
B4: =Januar!$B$4 -> Sum overtid i år (AML § 10-6) Overføres til neste måned: | M4: =SUM((Juli!M4)+M19) -> 0
B5: Utbetalt OT denne måned:
B6: OT fra forrige mnd: | E6: =SUM(Juli!M6) -> 0 | G6: OT til gode (etter utbetaling) denne mnd: | M6: =SUM(E6+M19-M5) -> 0
B8: Faktiske timer - Årsdifferanse | G8: Uke | H8: Uke | I8: Uke | J8: Uke | K8: Uke | L8: Uke | M8: Sum for
B9: =SUM((Juli!B9)+M13+M19) -> 0 | E9: =SUM(B9-(Januar!O19)) -> -78.0625 | G9: 31 | H9: =G9+1 -> 32 | I9: =H9+1 -> 33 | J9: =I9+1 -> 34 | K9: =J9+1 -> 35 | M9: måneden.
B10: Normal arbeidstid : | G10: =SUM(E31:E35) -> 0 | H10: =SUM(E36:E42) -> 0 | I10: =SUM(E43:E49) -> 0 | J10: =SUM(E50:E56) -> 0 | K10: =SUM(E57:E61) -> 0 | M10: =SUM(G10:L10) -> 0
B11: Ekstra arbeidstid (Ikke OT) : | G11: =SUM(H31:H35) -> 0 | H11: =SUM(H36:H42) -> 0 | I11: =SUM(H43:H49) -> 0 | J11: =SUM(H50:H56) -> 0 | K11: =SUM(H57:H61) -> 0 | M11: =SUM(G11:L11) -> 0
B12: =Januar!$B$12 -> Fravær i arbeidstiden: | G12: =SUM(K31:K35) -> 0 | H12: =SUM(K36:K42) -> 0 | I12: =SUM(K43:K49) -> 0 | J12: =SUM(K50:K56) -> 0 | K12: =SUM(K57:K61) -> 0 | M12: =SUM(G12:L12) -> 0
B13: Sum | G13: =SUM(G10+G11-G12) -> 0 | H13: 0 | I13: =SUM(I10+I11-I12) -> 0 | J13: =SUM(J10+J11-J12) -> 0 | K13: 0 | M13: =SUM(G13:L13) -> 0 | N13: =SUM(N10+N11-N12-N16) -> 0
B14: + / - arbeidstid pr. uke : | G14: =SUM(G13-G16) -> -0.9375 | H14: -1.5625 | I14: -1.5625 | J14: -1.5625 | K14: -1.5625 | M14: =SUM(G14:L14) -> -7.1875
B15: Overført fra forrige måned: | M15: =Juli!$M$1 -> -44.875
B16: Normal arbeidstid pr uke | G16: =G18 -> 0.9375 | H16: 1.5625 | I16: 1.5625 | J16: 1.5625 | K16: 1.5625 | M16: =SUM(G16:L16) -> 7.1875
B17: =Januar!$B$17 -> Antall dager med normal arbeidstid | G17: 3 | H17: 5 | I17: 5 | J17: 5 | K17: 5 | M17: =SUM(G17:L17) -> 23
B18: =Januar!$B$18 -> Normal arbeidstid pr dag (timer): | F18: =Januar!$F$18 -> 07:30:00 | G18: =$F$18*G17 -> 0.9375 | H18: 1.5625 | I18: 1.5625 | J18: 1.5625 | K18: 1.5625
B19: =Juli!$B$19 -> Overtid: | G19: =SUM(N31:N35) -> 0 | H19: =SUM(N36:N42) -> 0 | I19: =SUM(N43:N49) -> 0 | J19: =SUM(N50:N56) -> 0 | K19: =SUM(N57:N61) -> 0 | M19: =SUM(G19:L19) -> 0
A21: MERKNADER TIL PERIODEN:
C28: Normal arbeidstid | F28: Ekstra arbeidstid | I28: Fravær i arbeidstiden | L28: =Juli!$L$28 -> Overtid | O28: Merknad
A29: Dato | B29: Dag | C29: Inn | D29: Ut | E29: Sum | F29: Inn | G29: Ut | H29: Sum | I29: Ut | J29: Inn | K29: Sum | L29: Inn | M29: Ut | N29: Sum
A31: =Juli!$A$61+1 -> 2018-08-01 | B31: Onsdag | E31: =SUM(D31-C31) -> 00:00:00 | H31: =SUM(G31-F31) -> 00:00:00 | K31: =SUM(J31-I31) -> 00:00:00 | N31: =SUM(M31-L31) -> 00:00:00 | O31: Uke 31
A32: =A31+1 -> 2018-08-02 | B32: Torsdag | E32: =SUM(D32-C32) -> 00:00:00 | H32: =SUM(G32-F32) -> 00:00:00 | K32: =SUM(J32-I32) -> 00:00:00 | N32: =SUM(M32-L32) -> 00:00:00
A33: =A32+1 -> 2018-08-03 | B33: Fredag | E33: 00:00:00 | H33: 00:00:00 | K33: 00:00:00 | N33: 00:00:00
A34: 2018-08-04 | B34: Lørdag | E34: 00:00:00 | H34: 00:00:00 | K34: 00:00:00 | N34: 00:00:00
A35: 2018-08-05 | B35: Søndag | E35: 00:00:00 | H35: 00:00:00 | K35: 00:00:00 | N35: 00:00:00
A36: 2018-08-06 | B36: Mandag | E36: 00:00:00 | H36: 00:00:00 | K36: 00:00:00 | N36: 00:00:00 | O36: Uke 32
A37: 2018-08-07 | B37: Tirsdag | E37: =SUM(D37-C37) -> 00:00:00 | H37: =SUM(G37-F37) -> 00:00:00 | K37: =SUM(J37-I37) -> 00:00:00 | N37: =SUM(M37-L37) -> 00:00:00
A38: 2018-08-08 | B38: Onsdag | E38: 00:00:00 | H38: 00:00:00 | K38: 00:00:00 | N38: 00:00:00
A39: 2018-08-09 | B39: Torsdag | E39: 00:00:00 | H39: 00:00:00 | K39: 00:00:00 | N39: 00:00:00
A40: 2018-08-10 | B40: Fredag | E40: 00:00:00 | H40: 00:00:00 | K40: 00:00:00 | N40: 00:00:00
A41: 2018-08-11 | B41: Lørdag | E41: 00:00:00 | H41: 00:00:00 | K41: 00:00:00 | N41: 00:00:00
A42: 2018-08-12 | B42: Søndag | E42: 00:00:00 | H42: 00:00:00 | K42: 00:00:00 | N42: 00:00:00
A43: 2018-08-13 | B43: Mandag | E43: =SUM(D43-C43) -> 00:00:00 | H43: =SUM(G43-F43) -> 00:00:00 | K43: =SUM(J43-I43) -> 00:00:00 | N43: =SUM(M43-L43) -> 00:00:00 | O43: Uke 33
A44: 2018-08-14 | B44: Tirsdag | E44: =SUM(D44-C44) -> 00:00:00 | H44: =SUM(G44-F44) -> 00:00:00 | K44: =SUM(J44-I44) -> 00:00:00 | N44: =SUM(M44-L44) -> 00:00:00
A45: 2018-08-15 | B45: Onsdag | E45: 00:00:00 | H45: 00:00:00 | K45: 00:00:00 | N45: 00:00:00
A46: 2018-08-16 | B46: Torsdag | E46: 00:00:00 | H46: 00:00:00 | K46: 00:00:00 | N46: 00:00:00
A47: 2018-08-17 | B47: Fredag | E47: 00:00:00 | H47: 00:00:00 | K47: 00:00:00 | N47: 00:00:00
A48: 2018-08-18 | B48: Lørdag | E48: 00:00:00 | H48: 00:00:00 | K48: 00:00:00 | N48: 00:00:00
A49: 2018-08-19 | B49: Søndag | E49: 00:00:00 | H49: 00:00:00 | K49: =SUM(J49-I49) -> 00:00:00 | N49: 00:00:00
A50: 2018-08-20 | B50: Mandag | E50: =SUM(D50-C50) -> 00:00:00 | H50: =SUM(G50-F50) -> 00:00:00 | K50: 00:00:00 | N50: =SUM(M50-L50) -> 00:00:00 | O50: Uke 34
A51: 2018-08-21 | B51: Tirsdag | E51: =SUM(D51-C51) -> 00:00:00 | H51: =SUM(G51-F51) -> 00:00:00 | K51: 00:00:00 | N51: =SUM(M51-L51) -> 00:00:00
A52: 2018-08-22 | B52: Onsdag | E52: 00:00:00 | H52: 00:00:00 | K52: 00:00:00 | N52: 00:00:00
A53: 2018-08-23 | B53: Torsdag | E53: 00:00:00 | H53: 00:00:00 | K53: 00:00:00 | N53: 00:00:00
A54: 2018-08-24 | B54: Fredag | E54: 00:00:00 | H54: 00:00:00 | K54: 00:00:00 | N54: 00:00:00
A55: 2018-08-25 | B55: Lørdag | E55: 00:00:00 | H55: 00:00:00 | K55: 00:00:00 | N55: 00:00:00
A56: 2018-08-26 | B56: Søndag | E56: 00:00:00 | H56: 00:00:00 | K56: 00:00:00 | N56: 00:00:00
A57: 2018-08-27 | B57: Mandag | E57: =SUM(D57-C57) -> 00:00:00 | H57: =SUM(G57-F57) -> 00:00:00 | K57: 00:00:00 | N57: =SUM(M57-L57) -> 00:00:00 | O57: Uke 35
A58: 2018-08-28 | B58: Tirsdag | E58: =SUM(D58-C58) -> 00:00:00 | H58: =SUM(G58-F58) -> 00:00:00 | K58: 00:00:00 | N58: =SUM(M58-L58) -> 00:00:00
A59: 2018-08-29 | B59: Onsdag | E59: 00:00:00 | H59: 00:00:00 | K59: 00:00:00 | N59: 00:00:00
A60: 2018-08-30 | B60: Torsdag | E60: 00:00:00 | H60: 00:00:00 | K60: 00:00:00 | N60: 00:00:00
A61: 2018-08-31 | B61: Fredag | E61: 00:00:00 | H61: 00:00:00 | K61: 00:00:00 | N61: 00:00:00
A64: Signatur (arbeidstaker) | I64: Godkjent (overordnet)
A70: Dato | B70: Signatur | I70: Dato | J70: Signatur

Sheet September
B1: Overføres til neste måned - arbeidstid + / - (etter evt utbetaling): | M1: =SUM((M13+M15)-M16-M2) -> -58.3125
B2: Sum timer (EA) som utbetales denne måned (trekkes fra timer til gode):
B4: =Januar!$B$4 -> Sum overtid i år (AML § 10-6) Overføres til neste måned: | M4: =SUM((August!M4)+M19) -> 0
B5: Utbetalt OT denne måned:
B6: OT fra forrige mnd: | E6: =SUM(August!M6) -> 0 | G6: OT til gode (etter utbetaling) denne mnd: | M6: =SUM(E6+M19-M5) -> 0
B8: Faktiske timer - Årsdifferanse | G8: Uke | H8: Uke | I8: Uke | J8: Uke | K8: Uke | L8: Uke | M8: Sum for
B9: =SUM((August!B9)+M13+M19) -> 0 | E9: =SUM(B9-(Januar!O19)) -> -78.0625 | G9: 35 | H9: =G9+1 -> 36 | I9: =H9+1 -> 37 | J9: =I9+1 -> 38 | K9: =J9+1 -> 39 | L9: =K9+1 -> 40 | M9: måneden.
B10: Normal arbeidstid : | G10: =SUM(E31:E32) -> 0 | H10: =SUM(E33:E39) -> 0 | I10: =SUM(E40:E46) -> 0 | J10: =SUM(E47:E53) -> 0 | K10: =SUM(E54:E60) -> 0 | M10: =SUM(G10:L10) -> 0
B11: Ekstra arbeidstid (Ikke OT) : | G11: =SUM(H31:H32) -> 0 | H11: =SUM(H33:H39) -> 0 | I11: =SUM(H40:H46) -> 0 | J11: =SUM(H47:H53) -> 0 | K11: =SUM(H54:H60) -> 0 | M11: =SUM(G11:L11) -> 0
B12: =Januar!$B$12 -> Fravær i arbeidstiden: | G12: =SUM(K31:K32) -> 0 | H12: =SUM(K33:K39) -> 0 | I12: =SUM(K40:K46) -> 0 | J12: =SUM(K47:K53) -> 0 | K12: =SUM(K54:K60) -> 0 | M12: =SUM(G12:L12) -> 0
B13: Sum | G13: =SUM(G10+G11-G12) -> 0 | H13: =SUM(H10+H11-H12) -> 0 | I13: =SUM(I10+I11-I12) -> 0 | J13: =SUM(J10+J11-J12) -> 0 | K13: =SUM(K10+K11-K12) -> 0 | M13: =SUM(G13:L13) -> 0
B14: + / - arbeidstid pr. uke : | G14: =SUM(G13-G16) -> 0 | H14: =SUM(H13-H16) -> -1.5625 | I14: =SUM(I13-I16) -> -1.5625 | J14: =SUM(J13-J16) -> -1.5625 | K14: =SUM(K13-K16) -> -1.5625 | M14: =SUM(G14:L14) -> -6.25
B15: Overført fra forrige måned: | M15: =August!$M$1 -> -52.0625
B16: Normal arbeidstid pr uke | G16: =G18 -> 0 | H16: =H18 -> 1.5625 | I16: =I18 -> 1.5625 | J16: =J18 -> 1.5625 | K16: =K18 -> 1.5625 | M16: =SUM(G16:L16) -> 6.25
B17: =Januar!$B$17 -> Antall dager med normal arbeidstid | G17: 0 | H17: 5 | I17: 5 | J17: 5 | K17: 5 | M17: =SUM(G17:L17) -> 20
B18: =Januar!$B$18 -> Normal arbeidstid pr dag (timer): | F18: =Januar!$F$18 -> 07:30:00 | G18: =$F$18*G17 -> 0 | H18: =$F$18*H17 -> 1.5625 | I18: =$F$18*I17 -> 1.5625 | J18: =$F$18*J17 -> 1.5625 | K18: =$F$18*K17 -> 1.5625
B19: =August!$B$19 -> Overtid: | G19: =SUM(N31:N32) -> 0 | H19: =SUM(N33:N39) -> 0 | I19: =SUM(N40:N46) -> 0 | J19: =SUM(N47:N53) -> 0 | K19: =SUM(N54:N60) -> 0 | M19: =SUM(G19:L19) -> 0
A21: MERKNADER TIL PERIODEN:
C28: Normal arbeidstid | F28: Ekstra arbeidstid | I28: Fravær i arbeidstiden | L28: =August!$L$28 -> Overtid | O28: Merknad
A29: Dato | B29: Dag | C29: Inn | D29: Ut | E29: Sum | F29: Inn | G29: Ut | H29: Sum | I29: Ut | J29: Inn | K29: Sum | L29: Inn | M29: Ut | N29: Sum
A31: =August!$A$61+1 -> 2018-09-01 | B31: Lørdag | E31: =SUM(D31-C31) -> 00:00:00 | H31: =SUM(G31-F31) -> 00:00:00 | K31: =SUM(J31-I31) -> 00:00:00 | N31: =SUM(M31-L31) -> 00:00:00 | O31: Uke 35
A32: =A31+1 -> 2018-09-02 | B32: Søndag | E32: =SUM(D32-C32) -> 00:00:00 | H32: =SUM(G32-F32) -> 00:00:00 | K32: =SUM(J32-I32) -> 00:00:00 | N32: =SUM(M32-L32) -> 00:00:00
A33: =A32+1 -> 2018-09-03 | B33: Mandag | E33: =SUM(D33-C33) -> 00:00:00 | H33: =SUM(G33-F33) -> 00:00:00 | K33: =SUM(J33-I33) -> 00:00:00 | N33: =SUM(M33-L33) -> 00:00:00 | O33: Uke 36
A34: 2018-09-04 | B34: Tirsdag | E34: =SUM(D34-C34) -> 00:00:00 | H34: =SUM(G34-F34) -> 00:00:00 | K34: =SUM(J34-I34) -> 00:00:00 | N34: =SUM(M34-L34) -> 00:00:00
A35: 2018-09-05 | B35: Onsdag | E35: =SUM(D35-C35) -> 00:00:00 | H35: =SUM(G35-F35) -> 00:00:00 | K35: =SUM(J35-I35) -> 00:00:00 | N35: =SUM(M35-L35) -> 00:00:00
A36: 2018-09-06 | B36: Torsdag | E36: 00:00:00 | H36: 00:00:00 | K36: 00:00:00 | N36: 00:00:00
A37: 2018-09-07 | B37: Fredag | E37: 00:00:00 | H37: 00:00:00 | K37: 00:00:00 | N37: 00:00:00
A38: 2018-09-08 | B38: Lørdag | E38: 00:00:00 | H38: 00:00:00 | K38: 00:00:00 | N38: 00:00:00
A39: 2018-09-09 | B39: Søndag | E39: 00:00:00 | H39: 00:00:00 | K39: 00:00:00 | N39: 00:00:00
A40: 2018-09-10 | B40: Mandag | E40: 00:00:00 | H40: 00:00:00 | K40: 00:00:00 | N40: 00:00:00 | O40: Uke 37
A41: 2018-09-11 | B41: Tirsdag | E41: 00:00:00 | H41: 00:00:00 | K41: 00:00:00 | N41: 00:00:00
A42: 2018-09-12 | B42: Onsdag | E42: 00:00:00 | H42: 00:00:00 | K42: 00:00:00 | N42: 00:00:00
A43: 2018-09-13 | B43: Torsdag | E43: 00:00:00 | H43: 00:00:00 | K43: 00:00:00 | N43: 00:00:00
A44: 2018-09-14 | B44: Fredag | E44: 00:00:00 | H44: 00:00:00 | K44: 00:00:00 | N44: 00:00:00
A45: 2018-09-15 | B45: Lørdag | E45: 00:00:00 | H45: 00:00:00 | K45: 00:00:00 | N45: 00:00:00
A46: 2018-09-16 | B46: Søndag | E46: 00:00:00 | H46: 00:00:00 | K46: 00:00:00 | N46: 00:00:00
A47: 2018-09-17 | B47: Mandag | E47: 00:00:00 | H47: 00:00:00 | K47: 00:00:00 | N47: 00:00:00 | O47: Uke 38
A48: 2018-09-18 | B48: Tirsdag | E48: 00:00:00 | H48: 00:00:00 | K48: 00:00:00 | N48: 00:00:00
A49: 2018-09-19 | B49: Onsdag | E49: 00:00:00 | H49: 00:00:00 | K49: =SUM(J49-I49) -> 00:00:00 | N49: 00:00:00
A50: 2018-09-20 | B50: Torsdag | E50: 00:00:00 | H50: 00:00:00 | K50: 00:00:00 | N50: 00:00:00
A51: 2018-09-21 | B51: Fredag | E51: 00:00:00 | H51: 00:00:00 | K51: 00:00:00 | N51: 00:00:00
A52: 2018-09-22 | B52: Lørdag | E52: 00:00:00 | H52: 00:00:00 | K52: 00:00:00 | N52: 00:00:00
A53: 2018-09-23 | B53: Søndag | E53: 00:00:00 | H53: 00:00:00 | K53: 00:00:00 | N53: 00:00:00
A54: 2018-09-24 | B54: Mandag | E54: 00:00:00 | H54: 00:00:00 | K54: 00:00:00 | N54: 00:00:00 | O54: Uke 39
A55: 2018-09-25 | B55: Tirsdag | E55: 00:00:00 | H55: 00:00:00 | K55: 00:00:00 | N55: 00:00:00
A56: 2018-09-26 | B56: Onsdag | E56: 00:00:00 | H56: 00:00:00 | K56: 00:00:00 | N56: 00:00:00
A57: 2018-09-27 | B57: Torsdag | E57: 00:00:00 | H57: 00:00:00 | K57: 00:00:00 | N57: 00:00:00
A58: 2018-09-28 | B58: Fredag | E58: 00:00:00 | H58: 00:00:00 | K58: 00:00:00 | N58: 00:00:00
A59: 2018-09-29 | B59: Lørdag | E59: 00:00:00 | H59: 00:00:00 | K59: 00:00:00 | N59: 00:00:00
A60: 2018-09-30 | B60: Søndag | E60: 00:00:00 | H60: 00:00:00 | K60: 00:00:00 | N60: 00:00:00
A63: Signatur (arbeidstaker) | I63: Godkjent (overordnet)
A69: Dato | B69: Signatur | I69: Dato | J69: Signatur

Sheet Oktober
B1: Overføres til neste måned - arbeidstid + / - (etter evt utbetaling): | M1: =SUM((M13+M15)-M16-M2) -> -65.5
B2: Sum timer (EA) som utbetales denne måned (trekkes fra timer til gode):
B4: =Januar!$B$4 -> Sum overtid i år (AML § 10-6) Overføres til neste måned: | M4: =SUM((September!M4)+M19) -> 0
B5: Utbetalt OT denne måned:
B6: OT fra forrige mnd: | E6: =SUM(September!M6) -> 0 | G6: OT til gode (etter utbetaling) denne mnd: | M6: =SUM(E6+M19-M5) -> 0
B8: Faktiske timer - Årsdifferanse | G8: Uke | H8: Uke | I8: Uke | J8: Uke | K8: Uke | L8: Uke | M8: Sum for
B9: =SUM((September!B9)+M13+M19) -> 0 | E9: =SUM(B9-(Januar!O19)) -> -78.0625 | G9: 39 | H9: =G9+1 -> 40 | I9: =H9+1 -> 41 | J9: =I9+1 -> 42 | K9: =J9+1 -> 43 | L9: =K9+1 -> 44 | M9: måneden.
B10: Normal arbeidstid : | H10: =SUM(E31:E37) -> 0 | I10: =SUM(E38:E44) -> 0 | J10: =SUM(E45:E51) -> 0 | K10: =SUM(E52:E58) -> 0 | L10: =SUM(E59:E61) -> 0 | M10: =SUM(G10:L10) -> 0
B11: Ekstra arbeidstid (Ikke OT) : | H11: =SUM(H31:H37) -> 0 | I11: =SUM(H38:H44) -> 0 | J11: =SUM(H45:H51) -> 0 | K11: =SUM(H52:H58) -> 0 | L11: =SUM(H59:H61) -> 0 | M11: =SUM(G11:L11) -> 0
B12: =Januar!$B$12 -> Fravær i arbeidstiden: | H12: =SUM(K31:K37) -> 0 | I12: =SUM(K38:K44) -> 0 | J12: =SUM(K45:K51) -> 0 | K12: =SUM(K52:K58) -> 0 | L12: =SUM(K59:K61) -> 0 | M12: =SUM(G12:L12) -> 0
B13: Sum | H13: =SUM(H10+H11-H12) -> 0 | I13: =SUM(I10+I11-I12) -> 0 | J13: 0 | K13: 0 | L13: 0 | M13: =SUM(G13:L13) -> 0
B14: + / - arbeidstid pr. uke : | H14: =SUM(H13-H16) -> -1.5625 | I14: -1.5625 | J14: -1.5625 | K14: -1.5625 | L14: -0.9375 | M14: =SUM(G14:L14) -> -7.1875
B15: Overført fra forrige måned: | M15: =September!$M$1 -> -58.3125
B16: Normal arbeidstid pr uke | H16: =H18 -> 1.5625 | I16: 1.5625 | J16: 1.5625 | K16: 1.5625 | L16: 0.9375 | M16: =SUM(G16:L16) -> 7.1875
B17: =Januar!$B$17 -> Antall dager med normal arbeidstid | H17: 5 | I17: 5 | J17: 5 | K17: 5 | L17: 3 | M17: =SUM(G17:L17) -> 23
B18: =Januar!$B$18 -> Normal arbeidstid pr dag (timer): | F18: =Januar!$F$18 -> 07:30:00 | H18: =$F$18*H17 -> 1.5625 | I18: 1.5625 | J18: 1.5625 | K18: 1.5625 | L18: 0.9375
B19: =September!$B$19 -> Overtid: | H19: =SUM(N31:N37) -> 0 | I19: =SUM(N38:N44) -> 0 | J19: =SUM(N45:N51) -> 0 | K19: =SUM(N52:N58) -> 0 | L19: =SUM(N59:N61) -> 0 | M19: =SUM(G19:L19) -> 0
A21: MERKNADER TIL PERIODEN:
C28: Normal arbeidstid | F28: Ekstra arbeidstid | I28: Fravær i arbeidstiden | L28: =September!$L$28 -> Overtid | O28: Merknad
A29: Dato | B29: Dag | C29: Inn | D29: Ut | E29: Sum | F29: Inn | G29: Ut | H29: Sum | I29: Ut | J29: Inn | K29: Sum | L29: Inn | M29: Ut | N29: Sum
A31: =September!$A$60+1 -> 2018-10-01 | B31: Mandag | E31: =SUM(D31-C31) -> 00:00:00 | H31: =SUM(G31-F31) -> 00:00:00 | K31: =SUM(J31-I31) -> 00:00:00 | N31: =SUM(M31-L31) -> 00:00:00 | O31: Uke 40
A32: =A31+1 -> 2018-10-02 | B32: Tirsdag | E32: 00:00:00 | H32: 00:00:00 | K32: 00:00:00 | N32: 00:00:00
A33: =A32+1 -> 2018-10-03 | B33: Onsdag | E33: 00:00:00 | H33: 00:00:00 | K33: 00:00:00 | N33: 00:00:00
A34: 2018-10-04 | B34: Torsdag | E34: 00:00:00 | H34: 00:00:00 | K34: 00:00:00 | N34: 00:00:00
A35: 2018-10-05 | B35: Fredag | E35: 00:00:00 | H35: 00:00:00 | K35: 00:00:00 | N35: 00:00:00
A36: 2018-10-06 | B36: Lørdag | E36: 00:00:00 | H36: 00:00:00 | K36: 00:00:00 | N36: 00:00:00
A37: 2018-10-07 | B37: Søndag | E37: 00:00:00 | H37: 00:00:00 | K37: 00:00:00 | N37: 00:00:00
A38: 2018-10-08 | B38: Mandag | E38: 00:00:00 | H38: 00:00:00 | K38: 00:00:00 | N38: 00:00:00 | O38: Uke 41
A39: 2018-10-09 | B39: Tirsdag | E39: =SUM(D39-C39) -> 00:00:00 | H39: =SUM(G39-F39) -> 00:00:00 | K39: =SUM(J39-I39) -> 00:00:00 | N39: =SUM(M39-L39) -> 00:00:00
A40: 2018-10-10 | B40: Onsdag | E40: 00:00:00 | H40: 00:00:00 | K40: 00:00:00 | N40: 00:00:00
A41: 2018-10-11 | B41: Torsdag | E41: 00:00:00 | H41: 00:00:00 | K41: 00:00:00 | N41: 00:00:00
A42: 2018-10-12 | B42: Fredag | E42: 00:00:00 | H42: 00:00:00 | K42: 00:00:00 | N42: 00:00:00
A43: 2018-10-13 | B43: Lørdag | E43: 00:00:00 | H43: 00:00:00 | K43: 00:00:00 | N43: 00:00:00
A44: 2018-10-14 | B44: Søndag | E44: 00:00:00 | H44: 00:00:00 | K44: 00:00:00 | N44: 00:00:00
A45: 2018-10-15 | B45: Mandag | E45: 00:00:00 | H45: 00:00:00 | K45: 00:00:00 | N45: 00:00:00 | O45: Uke 42
A46: 2018-10-16 | B46: Tirsdag | E46: 00:00:00 | H46: 00:00:00 | K46: 00:00:00 | N46: 00:00:00
A47: 2018-10-17 | B47: Onsdag | E47: 00:00:00 | H47: 00:00:00 | K47: 00:00:00 | N47: 00:00:00
A48: 2018-10-18 | B48: Torsdag | E48: 00:00:00 | H48: 00:00:00 | K48: 00:00:00 | N48: 00:00:00
A49: 2018-10-19 | B49: Fredag | E49: 00:00:00 | H49: 00:00:00 | K49: 00:00:00 | N49: 00:00:00
A50: 2018-10-20 | B50: Lørdag | E50: 00:00:00 | H50: 00:00:00 | K50: 00:00:00 | N50: 00:00:00
A51: 2018-10-21 | B51: Søndag | E51: 00:00:00 | H51: 00:00:00 | K51: 00:00:00 | N51: 00:00:00
A52: 2018-10-22 | B52: Mandag | E52: 00:00:00 | H52: 00:00:00 | K52: 00:00:00 | N52: 00:00:00 | O52: Uke 43
A53: 2018-10-23 | B53: Tirsdag | E53: 00:00:00 | H53: 00:00:00 | K53: 00:00:00 | N53: 00:00:00
A54: 2018-10-24 | B54: Onsdag | E54: 00:00:00 | H54: 00:00:00 | K54: =SUM(J54-I54) -> 00:00:00 | N54: 00:00:00
A55: 2018-10-25 | B55: Torsdag | E55: 00:00:00 | H55: 00:00:00 | K55: 00:00:00 | N55: 00:00:00
A56: 2018-10-26 | B56: Fredag | E56: 00:00:00 | H56: 00:00:00 | K56: 00:00:00 | N56: 00:00:00
A57: 2018-10-27 | B57: Lørdag | E57: 00:00:00 | H57: 00:00:00 | K57: 00:00:00 | N57: 00:00:00
A58: 2018-10-28 | B58: Søndag | E58: 00:00:00 | H58: 00:00:00 | K58: 00:00:00 | N58: 00:00:00
A59: 2018-10-29 | B59: Mandag | E59: 00:00:00 | H59: 00:00:00 | K59: 00:00:00 | N59: 00:00:00 | O59: Uke 44
A60: 2018-10-30 | B60: Tirsdag | E60: 00:00:00 | H60: 00:00:00 | K60: 00:00:00 | N60: 00:00:00
A61: 2018-10-31 | B61: Onsdag | E61: =SUM(D61-C61) -> 00:00:00 | H61: =SUM(G61-F61) -> 00:00:00 | K61: =SUM(J61-I61) -> 00:00:00 | N61: =SUM(M61-L61) -> 00:00:00
A64: Signatur (arbeidstaker) | I64: Godkjent (overordnet)
A70: Dato | B70: Signatur | I70: Dato | J70: Signatur

Sheet November
B1: Overføres til neste måned - arbeidstid + / - (etter evt utbetaling): | M1: =SUM((M13+M15)-M16-M2) -> -72.375
B2: Sum timer (EA) som utbetales denne måned (trekkes fra timer til gode):
B4: =Januar!$B$4 -> Sum overtid i år (AML § 10-6) Overføres til neste måned: | M4: =SUM((Oktober!M4)+M19) -> 0
B5: Utbetalt OT denne måned:
B6: OT fra forrige mnd: | E6: =SUM(Oktober!M6) -> 0 | G6: OT til gode (etter utbetaling) denne mnd: | M6: =SUM(E6+M19-M5) -> 0
B8: Faktiske timer - Årsdifferanse | G8: Uke | H8: Uke | I8: Uke | J8: Uke | K8: Uke | M8: Sum for
B9: =SUM((Oktober!B9)+M13+M19) -> 0 | E9: =SUM(B9-(Januar!O19)) -> -78.0625 | G9: 44 | H9: =G9+1 -> 45 | I9: =H9+1 -> 46 | J9: =I9+1 -> 47 | K9: =J9+1 -> 48 | M9: måneden.
B10: Normal arbeidstid : | G10: =SUM(E31:E34) -> 0 | H10: =SUM(E35:E41) -> 0 | I10: =SUM(E42:E48) -> 0 | J10: =SUM(E49:E55) -> 0 | K10: =SUM(E56:E60) -> 0 | M10: =SUM(G10:L10) -> 0
B11: Ekstra arbeidstid (Ikke OT) : | G11: =SUM(H31:H34) -> 0 | H11: =SUM(H35:H41) -> 0 | I11: =SUM(H42:H48) -> 0 | J11: =SUM(H49:H55) -> 0 | K11: =SUM(H56:H60) -> 0 | M11: =SUM(G11:L11) -> 0
B12: =Januar!$B$12 -> Fravær i arbeidstiden: | G12: =SUM(K31:K34) -> 0 | H12: =SUM(K35:K41) -> 0 | I12: =SUM(K42:K48) -> 0 | J12: =SUM(K49:K55) -> 0 | K12: =SUM(K56:K60) -> 0 | M12: =SUM(G12:L12) -> 0
B13: Sum | G13: =SUM(G10+G11-G12) -> 0 | H13: =SUM(H10+H11-H12) -> 0 | I13: 0 | J13: 0 | K13: 0 | M13: =SUM(G13:L13) -> 0 | N13: =SUM(N10+N11-N12-N16) -> 0
B14: + / - arbeidstid pr. uke : | G14: =SUM(G13-G16) -> -0.625 | H14: =SUM(H13-H16) -> -1.5625 | I14: -1.5625 | J14: -1.5625 | K14: -1.5625 | M14: =SUM(G14:L14) -> -6.875
B15: Overført fra forrige måned: | M15: =Oktober!$M$1 -> -65.5
B16: Normal arbeidstid pr uke | G16: =G18 -> 0.625 | H16: 1.5625 | I16: 1.5625 | J16: 1.5625 | K16: 1.5625 | M16: =SUM(G16:L16) -> 6.875
B17: =Januar!$B$17 -> Antall dager med normal arbeidstid | G17: 2 | H17: 5 | I17: 5 | J17: 5 | K17: 5 | M17: =SUM(G17:L17) -> 22
B18: =Januar!$B$18 -> Normal arbeidstid pr dag (timer): | F18: =Januar!$F$18 -> 07:30:00 | G18: =$F$18*G17 -> 0.625 | H18: 1.5625 | I18: 1.5625 | J18: 1.5625 | K18: 1.5625
B19: =Oktober!$B$19 -> Overtid: | G19: =SUM(N31:N34) -> 0 | H19: =SUM(N35:N41) -> 0 | I19: =SUM(N42:N48) -> 0 | J19: =SUM(N49:N55) -> 0 | K19: =SUM(N56:N60) -> 0 | M19: =SUM(G19:L19) -> 0
A21: MERKNADER TIL PERIODEN:
C28: Normal arbeidstid | F28: Ekstra arbeidstid | I28: Fravær i arbeidstiden | L28: =Oktober!$L$28 -> Overtid | O28: Merknad
A29: Dato | B29: Dag | C29: Inn | D29: Ut | E29: Sum | F29: Inn | G29: Ut | H29: Sum | I29: Ut | J29: Inn | K29: Sum | L29: Inn | M29: Ut | N29: Sum
A31: =Oktober!$A$61+1 -> 2018-11-01 | B31: Torsdag | E31: =SUM(D31-C31) -> 00:00:00 | H31: =SUM(G31-F31) -> 00:00:00 | K31: =SUM(J31-I31) -> 00:00:00 | N31: =SUM(M31-L31) -> 00:00:00 | O31: Uke 44
A32: =A31+1 -> 2018-11-02 | B32: Fredag | E32: 00:00:00 | H32: 00:00:00 | K32: 00:00:00 | N32: 00:00:00
A33: =A32+1 -> 2018-11-03 | B33: Lørdag | E33: 00:00:00 | H33: 00:00:00 | K33: 00:00:00 | N33: 00:00:00
A34: 2018-11-04 | B34: Søndag | E34: 00:00:00 | H34: 00:00:00 | K34: 00:00:00 | N34: 00:00:00
A35: 2018-11-05 | B35: Mandag | E35: 00:00:00 | H35: 00:00:00 | K35: 00:00:00 | N35: 00:00:00 | O35: Uke 45
A36: 2018-11-06 | B36: Tirsdag | E36: 00:00:00 | H36: 00:00:00 | K36: 00:00:00 | N36: 00:00:00
A37: 2018-11-07 | B37: Onsdag | E37: =SUM(D37-C37) -> 00:00:00 | H37: =SUM(G37-F37) -> 00:00:00 | K37: =SUM(J37-I37) -> 00:00:00 | N37: =SUM(M37-L37) -> 00:00:00
A38: 2018-11-08 | B38: Torsdag | E38: 00:00:00 | H38: 00:00:00 | K38: 00:00:00 | N38: 00:00:00
A39: 2018-11-09 | B39: Fredag | E39: 00:00:00 | H39: 00:00:00 | K39: 00:00:00 | N39: 00:00:00
A40: 2018-11-10 | B40: Lørdag | E40: 00:00:00 | H40: 00:00:00 | K40: 00:00:00 | N40: 00:00:00
A41: 2018-11-11 | B41: Søndag | E41: 00:00:00 | H41: 00:00:00 | K41: 00:00:00 | N41: 00:00:00
A42: 2018-11-12 | B42: Mandag | E42: 00:00:00 | H42: 00:00:00 | K42: 00:00:00 | N42: 00:00:00 | O42: Uke 46
A43: 2018-11-13 | B43: Tirsdag | E43: 00:00:00 | H43: 00:00:00 | K43: 00:00:00 | N43: 00:00:00
A44: 2018-11-14 | B44: Onsdag | E44: 00:00:00 | H44: 00:00:00 | K44: 00:00:00 | N44: 00:00:00
A45: 2018-11-15 | B45: Torsdag | E45: 00:00:00 | H45: 00:00:00 | K45: 00:00:00 | N45: 00:00:00
A46: 2018-11-16 | B46: Fredag | E46: 00:00:00 | H46: 00:00:00 | K46: 00:00:00 | N46: 00:00:00
A47: 2018-11-17 | B47: Lørdag | E47: 00:00:00 | H47: 00:00:00 | K47: 00:00:00 | N47: 00:00:00
A48: 2018-11-18 | B48: Søndag | E48: 00:00:00 | H48: 00:00:00 | K48: 00:00:00 | N48: 00:00:00
A49: 2018-11-19 | B49: Mandag | E49: 00:00:00 | H49: 00:00:00 | K49: 00:00:00 | N49: 00:00:00 | O49: Uke 47
A50: 2018-11-20 | B50: Tirsdag | E50: 00:00:00 | H50: 00:00:00 | K50: 00:00:00 | N50: 00:00:00
A51: 2018-11-21 | B51: Onsdag | E51: 00:00:00 | H51: 00:00:00 | K51: =SUM(J51-I51) -> 00:00:00 | N51: 00:00:00
A52: 2018-11-22 | B52: Torsdag | E52: 00:00:00 | H52: 00:00:00 | K52: 00:00:00 | N52: 00:00:00
A53: 2018-11-23 | B53: Fredag | E53: 00:00:00 | H53: 00:00:00 | K53: 00:00:00 | N53: 00:00:00
A54: 2018-11-24 | B54: Lørdag | E54: 00:00:00 | H54: 00:00:00 | K54: 00:00:00 | N54: 00:00:00
A55: 2018-11-25 | B55: Søndag | E55: 00:00:00 | H55: 00:00:00 | K55: 00:00:00 | N55: 00:00:00
A56: 2018-11-26 | B56: Mandag | E56: 00:00:00 | H56: 00:00:00 | K56: 00:00:00 | N56: 00:00:00 | O56: Uke 48
A57: 2018-11-27 | B57: Tirsdag | E57: 00:00:00 | H57: 00:00:00 | K57: 00:00:00 | N57: 00:00:00
A58: 2018-11-28 | B58: Onsdag | E58: 00:00:00 | H58: 00:00:00 | K58: 00:00:00 | N58: 00:00:00
A59: 2018-11-29 | B59: Torsdag | E59: 00:00:00 | H59: 00:00:00 | K59: 00:00:00 | N59: 00:00:00
A60: 2018-11-30 | B60: Fredag | E60: 00:00:00 | H60: 00:00:00 | K60: 00:00:00 | N60: 00:00:00
A63: Signatur (arbeidstaker) | I63: Godkjent (overordnet)
A69: Dato | B69: Signatur | I69: Dato | J69: Signatur

Sheet Desember
B1: Overføres til neste måned - arbeidstid + / - (etter evt utbetaling): | M1: =SUM((M13+M15)-M16-M2) -> -78.0625
B2: Sum timer (EA) som utbetales denne måned (trekkes fra timer til gode):
B4: =Januar!$B$4 -> Sum overtid i år (AML § 10-6) Overføres til neste måned: | M4: =SUM((November!M4)+M19) -> 0
B5: Utbetalt OT denne måned:
B6: OT fra forrige mnd: | E6: =SUM(November!M6) -> 0 | G6: OT til gode (etter utbetaling) denne mnd: | M6: =SUM(E6+M19-M5) -> 0
B8: Faktiske timer - Årsdifferanse | G8: Uke | H8: Uke | I8: Uke | J8: Uke | K8: Uke | L8: Uke | M8: Sum for
B9: =SUM((November!B9)+M13+M19) -> 0 | E9: =SUM(B9-(Januar!O19)) -> -78.0625 | G9: 48 | H9: =G9+1 -> 49 | I9: =H9+1 -> 50 | J9: =I9+1 -> 51 | K9: =J9+1 -> 52 | L9: 1 | M9: måneden.
B10: Normal arbeidstid : | G10: =SUM(E31:E32) -> 0 | H10: =SUM(E33:E39) -> 0 | I10: =SUM(E40:E46) -> 0 | J10: =SUM(E47:E53) -> 0 | K10: =SUM(E54:E60) -> 0 | L10: =SUM(E61) -> 0 | M10: =SUM(G10:L10) -> 0
B11: Ekstra arbeidstid (Ikke OT) : | G11: =SUM(H31:H32) -> 0 | H11: =SUM(H33:H39) -> 0 | I11: =SUM(H40:H46) -> 0 | J11: =SUM(H47:H53) -> 0 | K11: =SUM(H54:H60) -> 0 | L11: =SUM(H61) -> 0 | M11: =SUM(G11:L11) -> 0
B12: =Januar!$B$12 -> Fravær i arbeidstiden: | G12: =SUM(K31:K32) -> 0 | H12: =SUM(K33:K39) -> 0 | I12: =SUM(K40:K46) -> 0 | J12: =SUM(K47:K53) -> 0 | K12: =SUM(K54:K60) -> 0 | L12: =SUM(K61) -> 0 | M12: =SUM(G12:L12) -> 0
B13: Sum | G13: =SUM(G10+G11-G12) -> 0 | H13: =SUM(H10+H11-H12) -> 0 | I13: =SUM(I10+I11-I12) -> 0 | J13: =SUM(J10+J11-J12) -> 0 | K13: 0 | L13: 0 | M13: =SUM(G13:L13) -> 0 | N13: =SUM(N10+N11-N12-N16) -> 0
B14: + / - arbeidstid pr. uke : | G14: =SUM(G13-G16) -> 0 | H14: =SUM(H13-H16) -> -1.5625 | I14: =SUM(I13-I16) -> -1.5625 | J14: -1.5625 | K14: -0.8125 | L14: -0.1875 | M14: =SUM(G14:L14) -> -5.6875
B15: Overført fra forrige måned: | M15: =November!$M$1 -> -72.375
B16: Normal arbeidstid pr uke | G16: =G18 -> 0 | H16: 1.5625 | I16: 1.5625 | J16: 1.5625 | K16: 0.8125 | L16: 0.1875 | M16: =SUM(G16:L16) -> 5.6875
B17: =Januar!$B$17 -> Antall dager med normal arbeidstid | G17: 0 | H17: 5 | I17: 5 | J17: 5 | K17: 2.600 | L17: 0.600 | M17: =SUM(G17:L17) -> 18.2
B18: =Januar!$B$18 -> Normal arbeidstid pr dag (timer): | F18: =Januar!$F$18 -> 07:30:00 | G18: =$F$18*G17 -> 0 | H18: 1.5625 | I18: 1.5625 | J18: 1.5625 | K18: 0.8125 | L18: 0.1875
B19: =November!$B$19 -> Overtid: | G19: =SUM(N31:N32) -> 0 | H19: =SUM(N33:N39) -> 0 | I19: =SUM(N40:N46) -> 0 | J19: =SUM(N47:N53) -> 0 | K19: =SUM(N54:N60) -> 0 | L19: =SUM(N61) -> 0 | M19: =SUM(G19:L19) -> 0
A21: MERKNADER TIL PERIODEN:
C28: Normal Arbeidstid | F28: Ekstra arbeidstid | I28: Fravær i arbeidstiden | L28: =Oktober!$L$28 -> Overtid | O28: Merknad
A29: Dato | B29: Dag | C29: Inn | D29: Ut | E29: Sum | F29: Inn | G29: Ut | H29: Sum | I29: Ut | J29: Inn | K29: Sum | L29: Inn | M29: Ut | N29: Sum
A31: =November!$A$60+1 -> 2018-12-01 | B31: Lørdag | E31: =SUM(D31-C31) -> 00:00:00 | H31: =SUM(G31-F31) -> 00:00:00 | K31: =SUM(J31-I31) -> 00:00:00 | N31: =SUM(M31-L31) -> 00:00:00 | O31: Uke 48
A32: =A31+1 -> 2018-12-02 | B32: Søndag | E32: =SUM(D32-C32) -> 00:00:00 | H32: =SUM(G32-F32) -> 00:00:00 | K32: =SUM(J32-I32) -> 00:00:00 | N32: =SUM(M32-L32) -> 00:00:00
A33: =A32+1 -> 2018-12-03 | B33: Mandag | E33: =SUM(D33-C33) -> 00:00:00 | H33: =SUM(G33-F33) -> 00:00:00 | K33: =SUM(J33-I33) -> 00:00:00 | N33: =SUM(M33-L33) -> 00:00:00 | O33: Uke 49
A34: 2018-12-04 | B34: Tirsdag | E34: 00:00:00 | H34: =SUM(G34-F34) -> 00:00:00 | K34: =SUM(J34-I34) -> 00:00:00 | N34: =SUM(M34-L34) -> 00:00:00
A35: 2018-12-05 | B35: Onsdag | E35: 00:00:00 | H35: 00:00:00 | K35: 00:00:00 | N35: 00:00:00
A36: 2018-12-06 | B36: Torsdag | E36: 00:00:00 | H36: 00:00:00 | K36: 00:00:00 | N36: 00:00:00
A37: 2018-12-07 | B37: Fredag | E37: 00:00:00 | H37: 00:00:00 | K37: 00:00:00 | N37: 00:00:00
A38: 2018-12-08 | B38: Lørdag | E38: 00:00:00 | H38: 00:00:00 | K38: 00:00:00 | N38: 00:00:00
A39: 2018-12-09 | B39: Søndag | E39: 00:00:00 | H39: 00:00:00 | K39: 00:00:00 | N39: 00:00:00
A40: 2018-12-10 | B40: Mandag | E40: =SUM(D40-C40) -> 00:00:00 | H40: =SUM(G40-F40) -> 00:00:00 | K40: =SUM(J40-I40) -> 00:00:00 | N40: =SUM(M40-L40) -> 00:00:00 | O40: Uke 50
A41: 2018-12-11 | B41: Tirsdag | E41: =SUM(D41-C41) -> 00:00:00 | H41: =SUM(G41-F41) -> 00:00:00 | K41: =SUM(J41-I41) -> 00:00:00 | N41: =SUM(M41-L41) -> 00:00:00
A42: 2018-12-12 | B42: Onsdag | E42: 00:00:00 | H42: 00:00:00 | K42: 00:00:00 | N42: 00:00:00
A43: 2018-12-13 | B43: Torsdag | E43: 00:00:00 | H43: 00:00:00 | K43: 00:00:00 | N43: 00:00:00
A44: 2018-12-14 | B44: Fredag | E44: 00:00:00 | H44: 00:00:00 | K44: 00:00:00 | N44: 00:00:00
A45: 2018-12-15 | B45: Lørdag | E45: 00:00:00 | H45: 00:00:00 | K45: 00:00:00 | N45: 00:00:00
A46: 2018-12-16 | B46: Søndag | E46: 00:00:00 | H46: =SUM(G46-F46) -> 00:00:00 | K46: 00:00:00 | N46: 00:00:00
A47: =A46+1 -> 2018-12-17 | B47: Mandag | E47: =SUM(D47-C47) -> 00:00:00 | H47: =SUM(G47-F47) -> 00:00:00 | K47: =SUM(J47-I47) -> 00:00:00 | N47: =SUM(M47-L47) -> 00:00:00 | O47: Uke 51
A48: =A47+1 -> 2018-12-18 | B48: Tirsdag | E48: =SUM(D48-C48) -> 00:00:00 | H48: =SUM(G48-F48) -> 00:00:00 | K48: =SUM(J48-I48) -> 00:00:00 | N48: =SUM(M48-L48) -> 00:00:00
A49: 2018-12-19 | B49: Onsdag | E49: 00:00:00 | H49: 00:00:00 | K49: =SUM(J49-I49) -> 00:00:00 | N49: 00:00:00
A50: 2018-12-20 | B50: Torsdag | E50: 00:00:00 | H50: 00:00:00 | K50: 00:00:00 | N50: 00:00:00
A51: 2018-12-21 | B51: Fredag | E51: 00:00:00 | H51: 00:00:00 | K51: 00:00:00 | N51: 00:00:00
A52: 2018-12-22 | B52: Lørdag | E52: 00:00:00 | H52: 00:00:00 | K52: 00:00:00 | N52: 00:00:00
A53: 2018-12-23 | B53: Søndag | E53: 00:00:00 | H53: 00:00:00 | K53: 00:00:00 | N53: 00:00:00
A54: 2018-12-24 | B54: Mandag | E54: =SUM(D54-C54) -> 00:00:00 | H54: =SUM(G54-F54) -> 00:00:00 | K54: 00:00:00 | N54: =SUM(M54-L54) -> 00:00:00 | O54: Juleaften (4:30t)
A55: 2018-12-25 | B55: Tirsdag | E55: =SUM(D55-C55) -> 00:00:00 | H55: =SUM(G55-F55) -> 00:00:00 | K55: 00:00:00 | N55: =SUM(M55-L55) -> 00:00:00 | O55: 1. Juledag
A56: 2018-12-26 | B56: Onsdag | E56: =SUM(D56-C56) -> 00:00:00 | H56: =SUM(G56-F56) -> 00:00:00 | K56: 00:00:00 | N56: =SUM(M56-L56) -> 00:00:00 | O56: 2. Juledag
A57: 2018-12-27 | B57: Torsdag | E57: 00:00:00 | H57: 00:00:00 | K57: 00:00:00 | N57: 00:00:00 | O57: Uke 52
A58: 2018-12-28 | B58: Fredag | E58: 00:00:00 | H58: 00:00:00 | K58: 00:00:00 | N58: 00:00:00
A59: 2018-12-29 | B59: Lørdag | E59: 00:00:00 | H59: 00:00:00 | K59: 00:00:00 | N59: 00:00:00
A60: 2018-12-30 | B60: Søndag | E60: 00:00:00 | H60: 00:00:00 | K60: 00:00:00 | N60: 00:00:00
A61: 2018-12-31 | B61: Mandag | E61: =SUM(D61-C61) -> 00:00:00 | H61: =SUM(G61-F61) -> 00:00:00 | K61: 00:00:00 | N61: =SUM(M61-L61) -> 00:00:00 | O61: Nyttårsaften (4:30t)
A64: Signatur (arbeidstaker) | I64: Godkjent (overordnet)
A70: Dato | B70: Signatur | I70: Dato | J70: Signatur

Sheet Beregning-Utbetaling av overtid
A2: Beregning av overtid.
A3: Arbeidstid | I3: Art | K3: Konto: | N3: Prosjekt:
A4: Ekstra arbeidstid (Ikke OT) : | G4: =SUM(H14:H38) -> 0
A5: Overtid 50% - til kl. 21:00. | G5: =SUM(K14:K38) -> 0
A6: Overtid 100% - fra kl. 21:00. | G6: =SUM(N14:N38) -> 0
A8: Normal arbeidstid | G8: =SUM(E14:E38) -> 0
C11: Normal arbeidstid | F11: Ekstra arbeidstid | I11: Overtid 50% | L11: Overtid 100% | O11: Merknad
A12: Dato | B12: Dag | C12: Inn | D12: Ut | E12: Sum | F12: Inn | G12: Ut | H12: Sum | I12: Inn | J12: Ut | K12: Sum | L12: Inn | M12: Ut | N12: Sum
E14: =SUM(D14-C14) -> 00:00:00 | H14: =SUM(G14-F14) -> 00:00:00 | K14: =SUM(J14-I14) -> 00:00:00 | N14: =SUM(M14-L14) -> 00:00:00
E15: 00:00:00 | H15: 00:00:00 | K15: 00:00:00 | N15: 00:00:00
E16: 00:00:00 | H16: 00:00:00 | K16: 00:00:00 | N16: 00:00:00
E17: 00:00:00 | H17: 00:00:00 | K17: 00:00:00 | N17: 00:00:00
E18: 00:00:00 | H18: 00:00:00 | K18: 00:00:00 | N18: 00:00:00
E19: 00:00:00 | H19: 00:00:00 | K19: 00:00:00 | N19: 00:00:00
E20: 00:00:00 | H20: 00:00:00 | K20: 00:00:00 | N20: 00:00:00
E21: 00:00:00 | H21: 00:00:00 | K21: 00:00:00 | N21: 00:00:00
E22: 00:00:00 | H22: 00:00:00 | K22: 00:00:00 | N22: 00:00:00
E23: 00:00:00 | H23: 00:00:00 | K23: 00:00:00 | N23: 00:00:00
E24: 00:00:00 | H24: 00:00:00 | K24: 00:00:00 | N24: 00:00:00
E25: 00:00:00 | H25: 00:00:00 | K25: 00:00:00 | N25: 00:00:00
E26: 00:00:00 | H26: 00:00:00 | K26: 00:00:00 | N26: 00:00:00
E27: 00:00:00 | H27: 00:00:00 | K27: 00:00:00 | N27: 00:00:00
E28: 00:00:00 | H28: 00:00:00 | K28: 00:00:00 | N28: 00:00:00
E29: 00:00:00 | H29: 00:00:00 | K29: 00:00:00 | N29: 00:00:00
E30: 00:00:00 | H30: 00:00:00 | K30: 00:00:00 | N30: 00:00:00
E31: 00:00:00 | H31: 00:00:00 | K31: 00:00:00 | N31: 00:00:00
E32: 00:00:00 | H32: 00:00:00 | K32: 00:00:00 | N32: 00:00:00
E33: 00:00:00 | H33: 00:00:00 | K33: 00:00:00 | N33: 00:00:00
E34: 00:00:00 | H34: 00:00:00 | K34: 00:00:00 | N34: 00:00:00
E35: 00:00:00 | H35: 00:00:00 | K35: 00:00:00 | N35: 00:00:00
E36: 00:00:00 | H36: 00:00:00 | K36: 00:00:00 | N36: 00:00:00
E37: 00:00:00 | H37: 00:00:00 | K37: 00:00:00 | N37: 00:00:00
E38: 00:00:00 | H38: 00:00:00 | K38: 00:00:00 | N38: 00:00:00
A41: Signatur (arbeidstaker) | I41: Godkjent (overordnet)
A45: Dato | B45: Signatur | I45: Dato | J45: Signatur

Sheet Brukerveiledning
A2: www.hobbiten.net
A3: Brukerveiledning for tidsregisteringsskjema.
A5: "Brukerveiledninger er for feiginger" - "Når alt annet svikter, les brukerveiledningen."
A7: Oversikt:
A8: Regneark for registrering av arbeidstid / fleksitid.
A9: Ved første gangs bruk.
A10: Start ute i året.
A11: Snarveistips.
A12: Føring av klokkeslett.
A13: Normal arbeidstid.
A14: Ekstra arbeide som ikke er overtid.
A15: Fravær i arbeidstiden.
A16: Avspassering.
A17: Overtid.
A18: Ferie.
A19: Sykdom.
A20: Permisjon.
A21: Merknadsrubrikkene.
A22: Hvordan føre timer som tas ut ved økonomisk kompensasjon.
A23: Spesielt for onsdag før påske, jule- og nyttårsaften. ±
A24: Årsoversikt.
A25: Cellebeskyttelse.
A26: Bruk av arket "Beregning av OT".
A27: Vanlige feil.
A28: Ansvar for feil, misforståelser, misbruk, feiltasting m.m.
A29: Forfatter - nye versoner.
A30: Tilbakemelding.
A33: Regneark for registrering av arbeidstid / fleksitid.
A34: Hvis du lurer på noen felt, kan du la musepekeren hvile på de cellene som har en liten rød trekant øverst i høyre hjørne. Da får du frem en "Merknad" med forklaring. De aller fleste feltene er for øvrig låst, slik at du ikke skal kunne endre på skjemaet.
A36: Skjemaet er lagt opp slik at hver uke beregnes med med normal arbeidstid * antall arbeidsdager. For de som har en normal arbeidsdag på 07:30 timer med betalt lunsj, er alt forhåndsutfylt.
A38: Ikke 7:30t arbeidsdag?: Dersom du har annen arbeidstid , f.eks 8:00) må du endre normal arbeidstid per dag i turkis celle F18 i januar. Denne endrer automatisk for hver måned når du endrer i januar, men kan overskrives i alle måneder. I tillegg må du endre onsdag før påske, jule- og nyttårsaften ved å endre arbeidstiden disse dagene. Se egen merknad om dette i arket for påske og desember.
A40: Deltidsjobbing: Jobber du deltid og arbeider fulle dager må du også endre hvor mange dager du jobber i den enkelte uke. Det gjør du i de turkise cellene Antall dager med normal arbeidstid (rad 17) og det må du gjøre hver måned.
A43: Ved første gangs bruk: (Start ute i året - Se eget punkt for dette.) ±
A44: 1. Filnavn.
A45: Du må lagre filen under nytt (ditt ?) navn, noe du blir tvunget til ved at filen du laster ned er en mal. Når du bruker ditt navn og avdeling som filnavn, vil dette komme med i toppteksten på hvert regneark som skrives ut.
A47: Etter at du har tatt skjemaet i bruk, bør du slett merknaden som står i tekstboksen i januar måned.
A49: 2. Pluss eller minus tid – når du tar regnearket i bruk.
A50: Ved første gangs bruk må du registrere din status for +/- tid. Dette gjør du i regnearket for januar – uavhengig av når du begynner å bruke regnearket. Timene/minuttene blir automatisk overført gjennom hele regnearket.
A52: Plusstid føres i ”turkis celle M15 i regnearket for januar”. Minustid føres i ”stor turkis cell B9 i regnearket for januar”
A54: Har du overtid som skal overføres, fører du dette i celle E6, dvs timer som ikke er hentet ut føres dette her, men husk da på at ditt totale timetall øker i månedsoversikten, men IKKE i jf. årsoversikten (jf. AML § 10-6) iom at det er timer fra fjoråret.
A56: Start ute i året. ±
A57: Skjemaet er lagt opp slik at du står i minus med den arbeidstiden du skal arbeide med pr. måned. Dette innebærer at dersom du begynner å bruke skjemaet i september, så er du rimelig på minus i og med at skjemaet ikke har registrert noen arbeidstid i perioden januar - august. Starter du med å bruke skjemaet ute i året, legger du inn 0 i de turkise cellene i rad 17 Antall dager med normal arbeidstid i alle ukene i hver måned før du begynner å bruke skjemaet.
A59: Snarveistips. ±
A60: Legg inn en snarvei til filen i mappen oppstart,da starter regnearket hver gang du starter maskinen. Da er det lettere å huske å skrive inn fremmøtetid. Du kan eventuelt legge inn en snarvei på skrivebordet eller på officeverktøylinjen for å gjøre arket arket lettere tilgjengelig.
A62: Føring av klokkeslett. ±
A63: Klokkeslett skrives slik 8:30 - åtte kolon tre null
A65: Normal arbeidstid. ±
A66: Regnearket baserer seg på at du taster inn tid når du kommer og tid når du går, som i et manuelt fleksiskjema. Dette gjøres i "Normal arbeidstid".
A68: Ekstra arbeide som ikke er overtid. ±
A69: Enkelte arbeider tidvis utover normal arbeidstid, og tar dette ut i avspassering. Dette er arbeide som ikke er pålagt og som det ikke betales overtid for, og det føres i "Ekstra arbeidstid".
A71: Fravær i arbeidstiden. ±
A72: Alt fravær fra arbeidsplassen, etter at du har kommet på arbeide, føres i "Fravær i arbeidstiden".
A74: Avspassering. ±
A75: Avspasserer du en hel dag, skriver du ikke inn noe arbeidstid den dagen. Du har jo ikke arbeidet noe denne dagen. Du må ikke føre fravær i tillegg på Fravær i arbeidstiden - da blir du trukket dobbelt.
A77: Overtid. ±
A78: Dersom du ikke har fast godtgjort overtid, noe som altså gjelder de fleste arbeidstakere, kan du kan bruke skjemaet til å registrere overtid, men da bare for oversiktens del. Vanlig overtidsskjema må fortsatt fylles ut.
A79: Overtidsoversikten er for å ha kontroll med hvor mye overtid du har arbeidet, jf. hvor mye du har lov til å arbeid jf. AML § 10-6. VIKTIG: Det er ingen omregning når det gjelder tillegg - hvilken OT-sats du skal bruke. Så du må selv holde kontroll på hvilke timer som er 50% og hvilke som er 100%. Noen henter ut tillegget i økonomisk kompesasjon og avspasserer timene. Variasjonene er mange, så her må du selv holde kontroll. Her kan du bruke arket "Beregning av OT" til å sortere arbeidstiden i henholdsvis 50 og 100%.
A81: Ferie. ±
A82: Feriedager føres med full arbeidstid, 0800-15:30. Du bør føre Ferie i merknadsrubrikken for å holde oversikten.
A84: Sykdom. ±
A85: Fravær pga sykdom føres med full arbeidstid, 0800-15:30. Du bør føre Sykdom i merknadsrubrikken.
A87: Permisjon. ±
A88: Har du permisjon med lønn, føres dette her som normal arbeidstid. Er det uten lønn, føres det IKKE arbeidstid - med mindre du blir trukket for dette over lønnsslippen. Da er du nødt til å føre det som timer her, ellers vil du bli trukket to ganger.
A90: Merknadsrubrikkene. ±
A91: Under "Merknad" kan du skrive korte meldinger til den enkelte dag, f.eks ved syk, ferie, kommunestyremøte m.m.. Tekstboksen "Merknader til perioden" kan du bruke til å skrive tekst om du skulle ha behov for kommentarer til perioden.
A93: Hvordan føre timer som tas ut ved økonomisk kompensasjon. ±
A94: Hvis du henter ut timer som du har til gode, enten ekstra arbeidstid eller overtid, fører du dette i de lysegrønne feltene. Da blir ditt tilgodehavende nedjustert med det antall timer du skriver inn der.
A96: Spesielt for onsdag før påske, jule- og nyttårsaften. ±
A97: Onsdag før påske er det arbeidstid til 12:00 for mange, men ikke alle. Sjekk derfor opp hva som gjelder for din arbeidsplass. Etter arbeidsmiljøloven er onsdag før skjærtorsdag i utgangspunktet en normal arbeidsdag frem til klokken 18, men det er mange som har avtaler om kortere arbeidstid denne dagen. Se artikkel om dette her: https://www.infotjenester.no/artikler/arbeidstid-paske/ Skjemaet bruker reglene til staten og kommune (KS) der alle skal slutte kl. 1200 onsdag før påske, jul- og nyttårsaften. Hovedtariffavtalenr sier ikke noe om starttidspunkt. Dette kan som sagt variere fra arbeidsplass til arbeidsplass. Oslo kommune har f.eks krav om 6 timer arbeidsdag onsdag før påske. Standard er oppstart kl 07:30, normalarbeidsdag på 7:30 og en arbeidsdag på 4t og 30 min på de "korte dagene" og dette er lagt inn i skjemaet. Skjemaet er altså lagt opp med arbeidstiden 07:30-12:00, en arbeidsdag på 4 t 30 min Dette registreres med 0,6 av en normal arbeidsdag på 07:30t. Har du annen arbeidstid, må du endre dette. Du må da endre Antall dager med normal arbeidstid i den turkise cellen på rad 17 i påske uken slik som det fremgår av det gule merknadsfeltet.
A99: Jul- og nyttårsaften er det arbeidstid til 12:00 for mange, men ikke alle. Sjekk derfor opp hva som gjelder for din arbeidsplass. Etter arbeidsmiljøloven er juleaften i utgangspunktet en normal arbeidsdag frem til klokken 15 og nyttårsaften er normal arbeidsdag frem til kl 1800, men det er mange som har avtaler om kortere arbeidstid denne dagen. Se artikkel om dette her: https://www.arbeidsrettsadvokater.no/arbeidstider/arbeidstider-i-jula/ Skjemaet bruker reglene til staten og kommune (KS) der alle skal slutte kl. 1200 onsdag før påske, jul- og nyttårsaften. Hovedtariffavtalen sier ikke noe om starttidspunkt. Arbeidstiden kan som sagt variere fra arbeidsplass til arbeidsplass. Standard er oppstart kl 07:30, normalarbeidsdag på 7:30 og en arbeidsdag på 4t og 30 min på de "korte dagene" og dette er lagt inn i skjemaet. Skjemaet er altså lagt opp med arbeidstiden 07:30-12:00, en arbeidsdag på 4 t 30 min Dette registreres med 0,6 av en normal arbeidsdag på 07:30t. Har du annen arbeidstid, må du endre dette. Du må da endre Antall dager med normal arbeidstid i den turkise cellen på rad 17 i den aktuelle uken slik og der de rød tallene er for uken med juleaften og de blå tallen er for uken med nyttårsaften i det gule merknadsfeltet.
A102: Årsoversikt. ±
A103: I arket årsoversikt finner du månedssummene for den enkelte type arbeidstid. Dette er kun for oversiktens del.
A105: Cellebeskyttelse. ±
A106: Skjemaet er beskyttet med passord og skjemaet er også lagt opp slik at du ikke kan velge låste celler. Årsaken er at du ikke skal taste feil og slette formler og/eller celler som er viktige. Dette gir imidlertid ingen beskyttelse da internett er fullt av verktøy for å cracke passord.
A108: Bruk av arket "Beregning av OT". ±
A109: Beregning av overtid: Celler med formler er låst, øvrige kan fritt skrives i/endres. Her kan du regne ut fordeling av overtidstimer de dagene du har overtid, og skal levere egen timeliste for dette for utbetaling. Eksempel: En dag fortsatte du å arbeide utover vanlig arbeidsdag kl. 15:30, og fortsatte på jobben til kl. 22:30. Nå var du beordret på møte i tiden kl. 19:00-22:30, men for å gjøre det enkelte for deg selv ble du på jobb etter at normalarbeidsdagen var slutt. Da skal du i utgangspunktet føre tiden fra kl. 15:30-19:00 som ekstra arbeidstid på den arbeidsdagen i det ordinære arbeidstidsregnskapet. Du kan få utbetalt time for time for ekstra arbeidstid derfor er det lagd som en egen kolonne. Du fører dette slik: Normal arbeidstid: 08:00 - 15:30 Ekstra arbeidstid: 15:30 - 19:00 = 3:30 50% overtid: 19:00 - 21:00 = 02:00 100% overtid: 21:00 - 22:30 = 1:30 Dette arket kan kopieres slik at du lagret en kopi hvis du trenger flere. Pek på fanenavnet og høyreklikk, velg kopier. Merknadsfeltet blir ikke med på en utskrift.
A111: Vanlige feil. ±
A112: De mest vanlige feilene er at det ikke er brukt kolon i klokkeslett eller timer. Dette gir ulike feil. Se nettsiden Hobbiten/Tid for ulike feilmeldinger.
A113: http://www.hobbiten.net/Tid/Tidsregistreringsskjema.shtml
A115: Ansvar for feil, misforståelser, misbruk, feiltasting m.m. ±
A116: Skjemaet er laget av meg som privatperson og jeg tar intet ansvar for bruken av dette. Det er et tilbud fra meg som privatperson og det er fritt å bruke det, men ikke for videresalg. Det er gjennomført en nitidig kvalitetskontroll, med egen sjekkliste som du finner på www.hobbiten.net/tid
A118: Forfatter - nye versjoner. ±
A119: Skjemaet er lagd av Leif E Broch - som arbeider som informasjonssjef i Eigersund kommune, men skjemaet er lagd av meg på min fritid og har ikke noe med min jobb å gjøre.
A121: Nye versjoner kommer hvert år på www.hobbiten.net Videre blir det annonsert på Twitter fra @lebroch med hashtag #flexitid
A123: Tilbakemelding. ±
A124: Jeg tar gjerne i mot tilbakemeldinger, og da særlig konstruktive forslag om forbedringer, epost:
A125: mailto:post@hobbiten.net?subject=Tilbakemelding - Tidregistreringsskjema
A127: For øvrig, er du ikke fornøyd med skjemaet, kan du jo bare la være å bruke det.... :-)
A129: Skjemaet tar ellers utgangspunkt i at arbeidsgiver skal ha rutiner for å registrere arbeidstid og at dette skal skje skriftlig.
A130: Se nettsiden til Arbeidstilsynet om dette https://www.arbeidstilsynet.no/arbeidsforhold/arbeidstid/registrering-av-arbeidstid/
A133: Til toppen.
